Reference,Expense_Type,Payment_Date,Payment_Amount,Supplier,MCC_Code,Department
060181101418,ICT CONTRACTS,01/02/2021,936,FLOWBIRD SMART CITY UK LTD PARKEON LTD,4789,PARKING SERVICES
060198101418,ICT CONTRACTS,22/02/2021,936,FLOWBIRD SMART CITY UK LTD PARKEON LTD,4789,PARKING SERVICES
060570103280,ICT CONTRACTS,01/02/2021,1200,Chipside Ltd,5734,PARKING SERVICES
060570103280,ICT CONTRACTS,01/02/2021,1200,Chipside Ltd,5734,PARKING SERVICES
061489101418,ICT CONTRACTS,22/02/2021,936,FLOWBIRD SMART CITY UK LTD PARKEON LTD,4789,PARKING SERVICES
062334102788,STATIONERY-VISITOR PERMITS,01/02/2021,1225.2,Integrity Print Ltd,2741,PARKING SERVICES
062550101418,ICT CONTRACTS,22/02/2021,936,FLOWBIRD SMART CITY UK LTD PARKEON LTD,4789,PARKING SERVICES
062551101575,SECURITY CONTRACT FEES,08/02/2021,144,A P SECURITY (APS) LTD,7393,LEISURE & CULTURE
062551101575,SECURITY CONTRACT FEES,08/02/2021,72,A P SECURITY (APS) LTD,7393,LEISURE & CULTURE
062551101575,SECURITY CONTRACT FEES,08/02/2021,504,A P SECURITY (APS) LTD,7393,PROPERTY & FACILITIES
062551101575,SECURITY CONTRACT FEES,08/02/2021,72,A P SECURITY (APS) LTD,7393,PROPERTY & FACILITIES
062551101575,SECURITY CONTRACT FEES,08/02/2021,72,A P SECURITY (APS) LTD,7393,PROPERTY & FACILITIES
062551101575,SECURITY CONTRACT FEES,08/02/2021,72,A P SECURITY (APS) LTD,7393,PROPERTY & FACILITIES
063329101418,ICT CONTRACTS,22/02/2021,936,FLOWBIRD SMART CITY UK LTD PARKEON LTD,4789,PARKING SERVICES
063545101575,SECURITY CONTRACT FEES,08/02/2021,144,A P SECURITY (APS) LTD,7393,LEISURE & CULTURE
063545101575,SECURITY CONTRACT FEES,08/02/2021,72,A P SECURITY (APS) LTD,7393,LEISURE & CULTURE
063545101575,SECURITY CONTRACT FEES,08/02/2021,504,A P SECURITY (APS) LTD,7393,PROPERTY & FACILITIES
063545101575,SECURITY CONTRACT FEES,08/02/2021,72,A P SECURITY (APS) LTD,7393,PROPERTY & FACILITIES
063545101575,SECURITY CONTRACT FEES,08/02/2021,72,A P SECURITY (APS) LTD,7393,PROPERTY & FACILITIES
063545101575,SECURITY CONTRACT FEES,08/02/2021,72,A P SECURITY (APS) LTD,7393,PROPERTY & FACILITIES
063595102088,PROFESSIONAL FEES,01/02/2021,1838.4,GRAVES JENKINS (CRAWLEY) LTD,6513,PROPERTY & FACILITIES
063663102088,PROFESSIONAL FEES,01/02/2021,2630.4,GRAVES JENKINS (CRAWLEY) LTD,6513,PROPERTY & FACILITIES
063813100298,GRANTS PAID,15/02/2021,1250,THE SPRINGBOARD PROJECT,NA,CHIEF EXECUTIVE OFFICE
063814104086,GRANTS PAID,15/02/2021,5000,Greening Steyning,7999,CHIEF EXECUTIVE OFFICE
063842104047,EQUIPMENT & TOOLS-PURCHASE,01/02/2021,1251.18,Roadware Ltd,7999,STREET SCENE & FLEET
063842104047,EQUIPMENT & TOOLS-PURCHASE,01/02/2021,178.74,Roadware Ltd,7999,STREET SCENE & FLEET
063848104084,GRANTS PAID,15/02/2021,1000,Holbrook PCC,NA,CHIEF EXECUTIVE OFFICE
063932101725,AGENCY STAFF,22/02/2021,1980,SELLICK PARTNERSHIP LTD,7361,LEGAL & DEMOCRATIC
063959101003,USE OF CONSULTANTS,15/02/2021,504,READING AGRICULTURAL CONSULTANTS LTD,7399,DEVELOPMENT
064132102839,USE OF CONSULTANTS,15/02/2021,3487.08,South Downs National Park Authority,9399,SPATIAL PLANNING
064159100094,POSTAGE PACKAGING DISTRIBUTION,01/02/2021,1.6,ROYAL MAIL,7399,CUSTOMER SERVICES
064159100094,POSTAGE PACKAGING DISTRIBUTION,01/02/2021,6.75,ROYAL MAIL,7399,CUSTOMER SERVICES
064159100094,POSTAGE PACKAGING DISTRIBUTION,01/02/2021,1396.13,ROYAL MAIL,7399,CUSTOMER SERVICES
064159100094,PROMOTIONAL ACTIVITIES,01/02/2021,1737.87,ROYAL MAIL,7399,ENVIRONMENTAL SERVICES/LICENSING
064192100517,CONTRACT CLEANING,22/02/2021,211.9,MONITOR CLEANING SERVICES LTD,7349,PROPERTY & FACILITIES
064192100517,CONTRACT CLEANING,22/02/2021,211.89,MONITOR CLEANING SERVICES LTD,7349,PARKING SERVICES
064192100517,CONTRACT CLEANING,22/02/2021,211.89,MONITOR CLEANING SERVICES LTD,7349,PROPERTY & FACILITIES
064192100517,CONTRACT CLEANING,22/02/2021,211.89,MONITOR CLEANING SERVICES LTD,7349,PARKING SERVICES
064192100517,CONTRACT CLEANING,22/02/2021,211.89,MONITOR CLEANING SERVICES LTD,7349,PROPERTY & FACILITIES
064237104103,GRANTS PAID,15/02/2021,956,Sustainable Henfield,NA,CHIEF EXECUTIVE OFFICE
064248100358,MINOR VEHICLE ITEMS / SUNDRIES,01/02/2021,1911.71,ROSSETTS COMMERCIALS,5521,STREET SCENE & FLEET
064251104022,PROTECTIVE CLOTHING & UNIFORMS,15/02/2021,673.2,Reveal Media Ltd,5111,PARKING SERVICES
064261100156,SEARCH FEES,01/02/2021,5280,WEST SUSSEX COUNTY COUNCIL,9405,DEVELOPMENT
064337101600,ICT CONTRACTS,01/02/2021,836.16,SPEKTRIX LTD,4814,LEISURE & CULTURE
064358102518,MINOR VEHICLE ITEMS / SUNDRIES,01/02/2021,4701.6,HENDY GROUP LTD,5511,STREET SCENE & FLEET
064361102112,SECURITY FEES OTHER,08/02/2021,540.6,JADE SECURITY SERVICES LTD,7393,PARKING SERVICES
064361102112,SECURITY FEES OTHER,08/02/2021,1856.4,JADE SECURITY SERVICES LTD,7393,PARKING SERVICES
064361102112,SECURITY FEES OTHER,08/02/2021,149.94,JADE SECURITY SERVICES LTD,7393,LEISURE & CULTURE
064361102112,SECURITY FEES OTHER,08/02/2021,571.2,JADE SECURITY SERVICES LTD,7393,PARKING SERVICES
064361102112,SECURITY FEES OTHER,08/02/2021,41.11,JADE SECURITY SERVICES LTD,7393,PARKING SERVICES
064365100682,PROFESSIONAL FEES,01/02/2021,795,BRAMLEY ASSOCIATES,7399,PROPERTY & FACILITIES
064389100856,IT PROJECTS,01/02/2021,2280,IDOX SOFTWARE LTD,7372,TECHNOLOGY
064389100856,IT PROJECTS,01/02/2021,1140,IDOX SOFTWARE LTD,7372,TECHNOLOGY
064390104106,EQUIPMENT & TOOLS-PURCHASE,01/02/2021,600,Want Don't Want Ltd,5712,HOUSING
064435102429,DISPOSAL COSTS,01/02/2021,7001.28,BRITANIACREST RECYCLING LTD,7392,WASTE & RECYLING
064439102429,EQUIPMENT & TOOLS-HIRE,01/02/2021,852,BRITANIACREST RECYCLING LTD,7392,WASTE & RECYLING
064440102429,DISPOSAL COSTS,01/02/2021,7335.12,BRITANIACREST RECYCLING LTD,7392,WASTE & RECYLING
064442102429,DISPOSAL COSTS,01/02/2021,1851.83,BRITANIACREST RECYCLING LTD,7392,WASTE & RECYLING
064444102429,EQUIPMENT & TOOLS-HIRE,01/02/2021,900,BRITANIACREST RECYCLING LTD,7392,WASTE & RECYLING
064444102429,DISPOSAL COSTS,01/02/2021,142.47,BRITANIACREST RECYCLING LTD,7392,WASTE & RECYLING
064449102213,QUALIFICATION/ COURSE FEES,01/02/2021,2944,UNIVERSITY OF BRIGHTON,8299,HUMAN RESOURCES & ORG DEVELOPMENT
064460100377,SERVICE CHARGES,01/02/2021,848.75,SAXON WEALD,8398,PROPERTY & FACILITIES
064462102242,VEHICLE PLANNED REPAIRS/MAINT,01/02/2021,6227.3,C P DAVIDSON & SONS LTD,5013,STREET SCENE & FLEET
064484103708,ICT CONTRACTS,15/02/2021,2413.81,RingCentral UK Ltd,4812,TECHNOLOGY
064488100156,PROFESSIONAL FEES,01/02/2021,7200,WEST SUSSEX COUNTY COUNCIL,9405,PROPERTY & FACILITIES
064489100202,GRANTS PAID,01/02/2021,25000,"AGE UK WEST SUSSEX, BRIGHTON & HOVE.",8398,HOUSING
064495104072,PROJECT SUPPORT,08/02/2021,1096.03,Engineered Foam Products,7999,WASTE & RECYLING
064518100164,PROFESSIONAL PRODUCTIONS,01/02/2021,-58.08,SOCIETY OF LONDON THEATRE,7922,LEISURE & CULTURE
064518100164,PROFESSIONAL PRODUCTIONS,01/02/2021,968,SOCIETY OF LONDON THEATRE,7922,LEISURE & CULTURE
064521101418,ICT CONTRACTS,22/02/2021,936,FLOWBIRD SMART CITY UK LTD PARKEON LTD,4789,PARKING SERVICES
064578100377,RENTS,01/02/2021,22768.01,SAXON WEALD,8398,HOUSING
064627101102,ICT CONTRACTS,08/02/2021,2702.4,SOFTCAT LTD,5045,TECHNOLOGY
064627101102,ICT CONTRACTS,08/02/2021,2702.4,SOFTCAT LTD,5045,TECHNOLOGY
064628100008,MINOR VEHICLE ITEMS / SUNDRIES,01/02/2021,532.22,PIRTEK (CRAWLEY),5013,STREET SCENE & FLEET
064629102395,ICT CONTRACTS,08/02/2021,3703.54,PHOENIX SOFTWARE,5045,TECHNOLOGY
064639100094,POSTAGE PACKAGING DISTRIBUTION,01/02/2021,1.35,ROYAL MAIL,7399,CUSTOMER SERVICES
064639100094,POSTAGE PACKAGING DISTRIBUTION,01/02/2021,8,ROYAL MAIL,7399,CUSTOMER SERVICES
064639100094,POSTAGE PACKAGING DISTRIBUTION,01/02/2021,1367.98,ROYAL MAIL,7399,CUSTOMER SERVICES
064683101057,TUTOR HIRE,08/02/2021,614.39,ETHOS FILM,8999,LEISURE & CULTURE
064684100862,OCCUPATIONAL HEALTH,08/02/2021,1877.92,HEALTH MANAGEMENT LTD,8099,HUMAN RESOURCES & ORG DEVELOPMENT
064726101575,SECURITY CONTRACT FEES,08/02/2021,895.2,A P SECURITY (APS) LTD,7393,LEISURE & CULTURE
064726101575,SECURITY CONTRACT FEES,08/02/2021,447.6,A P SECURITY (APS) LTD,7393,PROPERTY & FACILITIES
064726101575,SECURITY CONTRACT FEES,08/02/2021,447.6,A P SECURITY (APS) LTD,7393,PARKING SERVICES
064726101575,SECURITY CONTRACT FEES,08/02/2021,447.6,A P SECURITY (APS) LTD,7393,PARKING SERVICES
064726101575,SECURITY CONTRACT FEES,08/02/2021,447.6,A P SECURITY (APS) LTD,7393,PARKING SERVICES
064726101575,SECURITY CONTRACT FEES,08/02/2021,447.6,A P SECURITY (APS) LTD,7393,PARKING SERVICES
064726101575,SECURITY CONTRACT FEES,08/02/2021,447.6,A P SECURITY (APS) LTD,7393,PROPERTY & FACILITIES
064726101575,SECURITY CONTRACT FEES,08/02/2021,223.8,A P SECURITY (APS) LTD,7393,STREET SCENE & FLEET
064726101575,SECURITY CONTRACT FEES,08/02/2021,447.6,A P SECURITY (APS) LTD,7393,PROPERTY & FACILITIES
064735102429,DISPOSAL COSTS,08/02/2021,443.52,BRITANIACREST RECYCLING LTD,7392,WASTE & RECYLING
064735102429,EQUIPMENT & TOOLS-HIRE,08/02/2021,900,BRITANIACREST RECYCLING LTD,7392,WASTE & RECYLING
064736102429,DISPOSAL COSTS,08/02/2021,2276.74,BRITANIACREST RECYCLING LTD,7392,WASTE & RECYLING
064737102429,DISPOSAL COSTS,08/02/2021,7385.04,BRITANIACREST RECYCLING LTD,7392,WASTE & RECYLING
064738102429,DISPOSAL COSTS,08/02/2021,5045.04,BRITANIACREST RECYCLING LTD,7392,WASTE & RECYLING
064746101003,USE OF CONSULTANTS,01/02/2021,780,READING AGRICULTURAL CONSULTANTS LTD,7399,DEVELOPMENT
064757102989,MISC. ADVERT. (NON-RECRUITMNT),01/02/2021,714,Kingfisher Media Ltd,NA,LEISURE & CULTURE
064759101003,USE OF CONSULTANTS,01/02/2021,504,READING AGRICULTURAL CONSULTANTS LTD,7399,DEVELOPMENT
064762103288,USE OF CONSULTANTS,08/02/2021,1684.8,Essex County Council,9405,DEVELOPMENT
064771100077,LANDSCAPE WORKS (INC FENCING & GARDENING,01/02/2021,5130.31,EDBURTON CONTRACTORS LTD,1520,LEISURE & CULTURE
064804101448,LANDSCAPE WORKS (INC FENCING & GARDENING,01/02/2021,871.66,IDVERDE LTD,780,LEISURE & CULTURE
064805101448,UNSCHEDULED GROUNDS MAINT COTRACT,08/02/2021,1781.76,IDVERDE LTD,780,LEISURE & CULTURE
064849100317,TREE MAINTENANCE,01/02/2021,510.35,CLASSIC SERVICES GROUP LTD,7393,LEISURE & CULTURE
064850100317,TREE MAINTENANCE,01/02/2021,625.63,CLASSIC SERVICES GROUP LTD,7393,LEISURE & CULTURE
064851100317,TREE MAINTENANCE,01/02/2021,637.94,CLASSIC SERVICES GROUP LTD,7393,LEISURE & CULTURE
064852100317,TREE MAINTENANCE,01/02/2021,1828.48,CLASSIC SERVICES GROUP LTD,7393,LEISURE & CULTURE
064853100317,TREE MAINTENANCE,01/02/2021,574.15,CLASSIC SERVICES GROUP LTD,7393,LEISURE & CULTURE
064923100041,GAS,01/02/2021,248.39,KENT COUNTY COUNCIL (KCS),4900,HOUSING
064923100041,GAS,01/02/2021,296.86,KENT COUNTY COUNCIL (KCS),4900,HOUSING
064923100041,GAS,01/02/2021,58.31,KENT COUNTY COUNCIL (KCS),4900,PROPERTY & FACILITIES
064923100041,ELECTRICITY,01/02/2021,26.2,KENT COUNTY COUNCIL (KCS),4900,ECONOMIC DEVELOPMENT
064923100041,ELECTRICITY,01/02/2021,654.84,KENT COUNTY COUNCIL (KCS),4900,PROPERTY & FACILITIES
064923100041,ELECTRICITY,01/02/2021,138.02,KENT COUNTY COUNCIL (KCS),4900,PROPERTY & FACILITIES
064923100041,ELECTRICITY,01/02/2021,135.5,KENT COUNTY COUNCIL (KCS),4900,PROPERTY & FACILITIES
064923100041,ELECTRICITY,01/02/2021,52.89,KENT COUNTY COUNCIL (KCS),4900,ECONOMIC DEVELOPMENT
064923100041,GAS,01/02/2021,28.46,KENT COUNTY COUNCIL (KCS),4900,HOUSING
064923100041,GAS,01/02/2021,17.55,KENT COUNTY COUNCIL (KCS),4900,HOUSING
064923100041,GAS,01/02/2021,25.66,KENT COUNTY COUNCIL (KCS),4900,HOUSING
064923100041,GAS,01/02/2021,25.23,KENT COUNTY COUNCIL (KCS),4900,HOUSING
064923100041,GAS,01/02/2021,23.34,KENT COUNTY COUNCIL (KCS),4900,HOUSING
064923100041,GAS,01/02/2021,23.04,KENT COUNTY COUNCIL (KCS),4900,HOUSING
064923100041,GAS,01/02/2021,23.17,KENT COUNTY COUNCIL (KCS),4900,HOUSING
064923100041,GAS,01/02/2021,20.73,KENT COUNTY COUNCIL (KCS),4900,HOUSING
064923100041,GAS,01/02/2021,21.46,KENT COUNTY COUNCIL (KCS),4900,HOUSING
064923100041,GAS,01/02/2021,23.76,KENT COUNTY COUNCIL (KCS),4900,HOUSING
064923100041,GAS,01/02/2021,23.02,KENT COUNTY COUNCIL (KCS),4900,HOUSING
064923100041,GAS,01/02/2021,43.08,KENT COUNTY COUNCIL (KCS),4900,HOUSING
064923100041,GAS,01/02/2021,35.7,KENT COUNTY COUNCIL (KCS),4900,HOUSING
064923100041,GAS,01/02/2021,27.09,KENT COUNTY COUNCIL (KCS),4900,HOUSING
064923100041,GAS,01/02/2021,33.05,KENT COUNTY COUNCIL (KCS),4900,HOUSING
064923100041,GAS,01/02/2021,33.54,KENT COUNTY COUNCIL (KCS),4900,HOUSING
064923100041,GAS,01/02/2021,49.08,KENT COUNTY COUNCIL (KCS),4900,HOUSING
064923100041,ELECTRICITY,01/02/2021,166.74,KENT COUNTY COUNCIL (KCS),4900,PROPERTY & FACILITIES
064923100041,ELECTRICITY,01/02/2021,18.21,KENT COUNTY COUNCIL (KCS),4900,ECONOMIC DEVELOPMENT
064923100041,ELECTRICITY,01/02/2021,9.67,KENT COUNTY COUNCIL (KCS),4900,ECONOMIC DEVELOPMENT
064923100041,ELECTRICITY,01/02/2021,11.38,KENT COUNTY COUNCIL (KCS),4900,ECONOMIC DEVELOPMENT
064923100041,ELECTRICITY,01/02/2021,39.26,KENT COUNTY COUNCIL (KCS),4900,ECONOMIC DEVELOPMENT
064923100041,ELECTRICITY,01/02/2021,323.78,KENT COUNTY COUNCIL (KCS),4900,PROPERTY & FACILITIES
064923100041,GAS,01/02/2021,244.57,KENT COUNTY COUNCIL (KCS),4900,HOUSING
064923100041,GAS,01/02/2021,18.72,KENT COUNTY COUNCIL (KCS),4900,HOUSING
064923100041,GAS,01/02/2021,21.26,KENT COUNTY COUNCIL (KCS),4900,HOUSING
064923100041,GAS,01/02/2021,20.55,KENT COUNTY COUNCIL (KCS),4900,HOUSING
064923100041,GAS,01/02/2021,47.33,KENT COUNTY COUNCIL (KCS),4900,HOUSING
064923100041,GAS,01/02/2021,29.43,KENT COUNTY COUNCIL (KCS),4900,HOUSING
064923100041,GAS,01/02/2021,36.31,KENT COUNTY COUNCIL (KCS),4900,HOUSING
064923100041,GAS,01/02/2021,39.88,KENT COUNTY COUNCIL (KCS),4900,HOUSING
064923100041,GAS,01/02/2021,23.6,KENT COUNTY COUNCIL (KCS),4900,HOUSING
064923100041,GAS,01/02/2021,21.02,KENT COUNTY COUNCIL (KCS),4900,HOUSING
064923100041,GAS,01/02/2021,40.62,KENT COUNTY COUNCIL (KCS),4900,LEISURE & CULTURE
064923100041,GAS,01/02/2021,38.83,KENT COUNTY COUNCIL (KCS),4900,LEISURE & CULTURE
064923100041,GAS,01/02/2021,40.37,KENT COUNTY COUNCIL (KCS),4900,HOUSING
064923100041,GAS,01/02/2021,49.48,KENT COUNTY COUNCIL (KCS),4900,HOUSING
064923100041,GAS,01/02/2021,32.66,KENT COUNTY COUNCIL (KCS),4900,HOUSING
064923100041,GAS,01/02/2021,49.02,KENT COUNTY COUNCIL (KCS),4900,HOUSING
064923100041,GAS,01/02/2021,42.95,KENT COUNTY COUNCIL (KCS),4900,HOUSING
064923100041,GAS,01/02/2021,36.13,KENT COUNTY COUNCIL (KCS),4900,HOUSING
064923100041,GAS,01/02/2021,35.53,KENT COUNTY COUNCIL (KCS),4900,HOUSING
064923100041,GAS,01/02/2021,49.62,KENT COUNTY COUNCIL (KCS),4900,HOUSING
064923100041,GAS,01/02/2021,231.83,KENT COUNTY COUNCIL (KCS),4900,HOUSING
064923100041,ELECTRICITY,01/02/2021,408.08,KENT COUNTY COUNCIL (KCS),4900,HOUSING
064923100041,ELECTRICITY,01/02/2021,2148.38,KENT COUNTY COUNCIL (KCS),4900,STREET SCENE & FLEET
064923100041,ELECTRICITY,01/02/2021,2076.2,KENT COUNTY COUNCIL (KCS),4900,LEISURE & CULTURE
064923100041,GAS,01/02/2021,71.97,KENT COUNTY COUNCIL (KCS),4900,HOUSING
064923100041,GAS,01/02/2021,11.72,KENT COUNTY COUNCIL (KCS),4900,HOUSING
064923100041,GAS,01/02/2021,28.72,KENT COUNTY COUNCIL (KCS),4900,HOUSING
064923100041,GAS,01/02/2021,40.67,KENT COUNTY COUNCIL (KCS),4900,HOUSING
064923100041,GAS,01/02/2021,159.19,KENT COUNTY COUNCIL (KCS),4900,HOUSING
064923100041,GAS,01/02/2021,34.24,KENT COUNTY COUNCIL (KCS),4900,LEISURE & CULTURE
064923100041,GAS,01/02/2021,325.21,KENT COUNTY COUNCIL (KCS),4900,PROPERTY & FACILITIES
064923100041,GAS,01/02/2021,85.63,KENT COUNTY COUNCIL (KCS),4900,PROPERTY & FACILITIES
064923100041,GAS,01/02/2021,351.07,KENT COUNTY COUNCIL (KCS),4900,PROPERTY & FACILITIES
064923100041,GAS,01/02/2021,60.11,KENT COUNTY COUNCIL (KCS),4900,PROPERTY & FACILITIES
064923100041,ELECTRICITY,01/02/2021,648.7,KENT COUNTY COUNCIL (KCS),4900,LEISURE & CULTURE
064923100041,ELECTRICITY,01/02/2021,55.14,KENT COUNTY COUNCIL (KCS),4900,LEISURE & CULTURE
064923100041,ELECTRICITY,01/02/2021,275.7,KENT COUNTY COUNCIL (KCS),4900,PROPERTY & FACILITIES
064923100041,ELECTRICITY,01/02/2021,295.16,KENT COUNTY COUNCIL (KCS),4900,PROPERTY & FACILITIES
064923100041,ELECTRICITY,01/02/2021,681.14,KENT COUNTY COUNCIL (KCS),4900,PROPERTY & FACILITIES
064923100041,ELECTRICITY,01/02/2021,16.22,KENT COUNTY COUNCIL (KCS),4900,SPATIAL PLANNING
064923100041,ELECTRICITY,01/02/2021,162.18,KENT COUNTY COUNCIL (KCS),4900,LEISURE & CULTURE
064923100041,ELECTRICITY,01/02/2021,55.14,KENT COUNTY COUNCIL (KCS),4900,PROPERTY & FACILITIES
064923100041,ELECTRICITY,01/02/2021,746.01,KENT COUNTY COUNCIL (KCS),4900,PROPERTY & FACILITIES
064923100041,ELECTRICITY,01/02/2021,308.14,KENT COUNTY COUNCIL (KCS),4900,PROPERTY & FACILITIES
064923100041,ELECTRICITY,01/02/2021,236.13,KENT COUNTY COUNCIL (KCS),4900,PROPERTY & FACILITIES
064923100041,ELECTRICITY,01/02/2021,1512.98,KENT COUNTY COUNCIL (KCS),4900,PARKING SERVICES
064923100041,GAS,01/02/2021,27.37,KENT COUNTY COUNCIL (KCS),4900,HOUSING
064923100041,GAS,01/02/2021,53.1,KENT COUNTY COUNCIL (KCS),4900,HOUSING
064923100041,GAS,01/02/2021,28.78,KENT COUNTY COUNCIL (KCS),4900,HOUSING
064923100041,GAS,01/02/2021,18.07,KENT COUNTY COUNCIL (KCS),4900,HOUSING
064923100041,GAS,01/02/2021,20.56,KENT COUNTY COUNCIL (KCS),4900,HOUSING
064923100041,GAS,01/02/2021,27.13,KENT COUNTY COUNCIL (KCS),4900,HOUSING
064923100041,ELECTRICITY,01/02/2021,41.61,KENT COUNTY COUNCIL (KCS),4900,PROPERTY & FACILITIES
064923100041,ELECTRICITY,01/02/2021,1.6,KENT COUNTY COUNCIL (KCS),4900,PARKING SERVICES
064923100041,ELECTRICITY,01/02/2021,33.65,KENT COUNTY COUNCIL (KCS),4900,PARKING SERVICES
064923100041,ELECTRICITY,01/02/2021,3.31,KENT COUNTY COUNCIL (KCS),4900,PROPERTY & FACILITIES
064923100041,ELECTRICITY,01/02/2021,13.1,KENT COUNTY COUNCIL (KCS),4900,PARKING SERVICES
064923100041,ELECTRICITY,01/02/2021,20.73,KENT COUNTY COUNCIL (KCS),4900,PARKING SERVICES
064923100041,ELECTRICITY,01/02/2021,1.6,KENT COUNTY COUNCIL (KCS),4900,PROPERTY & FACILITIES
064923100041,ELECTRICITY,01/02/2021,80.69,KENT COUNTY COUNCIL (KCS),4900,PARKING SERVICES
064923100041,ELECTRICITY,01/02/2021,35.54,KENT COUNTY COUNCIL (KCS),4900,PARKING SERVICES
064923100041,ELECTRICITY,01/02/2021,11.32,KENT COUNTY COUNCIL (KCS),4900,PROPERTY & FACILITIES
064923100041,ELECTRICITY,01/02/2021,2.87,KENT COUNTY COUNCIL (KCS),4900,PROPERTY & FACILITIES
064923100041,ELECTRICITY,01/02/2021,6.8,KENT COUNTY COUNCIL (KCS),4900,PROPERTY & FACILITIES
064923100041,ELECTRICITY,01/02/2021,6.48,KENT COUNTY COUNCIL (KCS),4900,PARKING SERVICES
064923100041,ELECTRICITY,01/02/2021,3.81,KENT COUNTY COUNCIL (KCS),4900,PROPERTY & FACILITIES
064923100041,ELECTRICITY,01/02/2021,4.85,KENT COUNTY COUNCIL (KCS),4900,PARKING SERVICES
064923100041,ELECTRICITY,01/02/2021,5.74,KENT COUNTY COUNCIL (KCS),4900,PARKING SERVICES
064923100041,ELECTRICITY,01/02/2021,12.92,KENT COUNTY COUNCIL (KCS),4900,PARKING SERVICES
064923100041,ELECTRICITY,01/02/2021,4.85,KENT COUNTY COUNCIL (KCS),4900,PROPERTY & FACILITIES
064923100041,ELECTRICITY,01/02/2021,4.2,KENT COUNTY COUNCIL (KCS),4900,PARKING SERVICES
064923100041,ELECTRICITY,01/02/2021,85.3,KENT COUNTY COUNCIL (KCS),4900,PROPERTY & FACILITIES
064923100041,ELECTRICITY,01/02/2021,3.27,KENT COUNTY COUNCIL (KCS),4900,PARKING SERVICES
064923100041,ELECTRICITY,01/02/2021,68.94,KENT COUNTY COUNCIL (KCS),4900,PARKING SERVICES
064923100041,ELECTRICITY,01/02/2021,6.79,KENT COUNTY COUNCIL (KCS),4900,PROPERTY & FACILITIES
064923100041,ELECTRICITY,01/02/2021,26.84,KENT COUNTY COUNCIL (KCS),4900,PARKING SERVICES
064923100041,ELECTRICITY,01/02/2021,42.47,KENT COUNTY COUNCIL (KCS),4900,PARKING SERVICES
064923100041,ELECTRICITY,01/02/2021,3.27,KENT COUNTY COUNCIL (KCS),4900,PROPERTY & FACILITIES
064923100041,ELECTRICITY,01/02/2021,165.33,KENT COUNTY COUNCIL (KCS),4900,PARKING SERVICES
064923100041,ELECTRICITY,01/02/2021,72.82,KENT COUNTY COUNCIL (KCS),4900,PARKING SERVICES
064923100041,ELECTRICITY,01/02/2021,23.2,KENT COUNTY COUNCIL (KCS),4900,PROPERTY & FACILITIES
064923100041,ELECTRICITY,01/02/2021,5.88,KENT COUNTY COUNCIL (KCS),4900,PROPERTY & FACILITIES
064923100041,ELECTRICITY,01/02/2021,13.93,KENT COUNTY COUNCIL (KCS),4900,PROPERTY & FACILITIES
064923100041,ELECTRICITY,01/02/2021,13.27,KENT COUNTY COUNCIL (KCS),4900,PARKING SERVICES
064923100041,ELECTRICITY,01/02/2021,7.82,KENT COUNTY COUNCIL (KCS),4900,PROPERTY & FACILITIES
064923100041,ELECTRICITY,01/02/2021,9.94,KENT COUNTY COUNCIL (KCS),4900,PARKING SERVICES
064923100041,ELECTRICITY,01/02/2021,11.75,KENT COUNTY COUNCIL (KCS),4900,PARKING SERVICES
064923100041,ELECTRICITY,01/02/2021,26.47,KENT COUNTY COUNCIL (KCS),4900,PARKING SERVICES
064923100041,ELECTRICITY,01/02/2021,9.94,KENT COUNTY COUNCIL (KCS),4900,PROPERTY & FACILITIES
064923100041,ELECTRICITY,01/02/2021,8.6,KENT COUNTY COUNCIL (KCS),4900,PARKING SERVICES
064923100041,ELECTRICITY,01/02/2021,6.79,KENT COUNTY COUNCIL (KCS),4900,PROPERTY & FACILITIES
064923100041,ELECTRICITY,01/02/2021,0.26,KENT COUNTY COUNCIL (KCS),4900,PARKING SERVICES
064923100041,ELECTRICITY,01/02/2021,5.48,KENT COUNTY COUNCIL (KCS),4900,PARKING SERVICES
064923100041,ELECTRICITY,01/02/2021,0.54,KENT COUNTY COUNCIL (KCS),4900,PROPERTY & FACILITIES
064923100041,ELECTRICITY,01/02/2021,2.13,KENT COUNTY COUNCIL (KCS),4900,PARKING SERVICES
064923100041,ELECTRICITY,01/02/2021,3.37,KENT COUNTY COUNCIL (KCS),4900,PARKING SERVICES
064923100041,ELECTRICITY,01/02/2021,0.26,KENT COUNTY COUNCIL (KCS),4900,PROPERTY & FACILITIES
064923100041,ELECTRICITY,01/02/2021,13.13,KENT COUNTY COUNCIL (KCS),4900,PARKING SERVICES
064923100041,ELECTRICITY,01/02/2021,5.78,KENT COUNTY COUNCIL (KCS),4900,PARKING SERVICES
064923100041,ELECTRICITY,01/02/2021,1.84,KENT COUNTY COUNCIL (KCS),4900,PROPERTY & FACILITIES
064923100041,ELECTRICITY,01/02/2021,0.47,KENT COUNTY COUNCIL (KCS),4900,PROPERTY & FACILITIES
064923100041,ELECTRICITY,01/02/2021,1.11,KENT COUNTY COUNCIL (KCS),4900,PROPERTY & FACILITIES
064923100041,ELECTRICITY,01/02/2021,1.05,KENT COUNTY COUNCIL (KCS),4900,PARKING SERVICES
064923100041,ELECTRICITY,01/02/2021,0.62,KENT COUNTY COUNCIL (KCS),4900,PROPERTY & FACILITIES
064923100041,ELECTRICITY,01/02/2021,0.79,KENT COUNTY COUNCIL (KCS),4900,PARKING SERVICES
064923100041,ELECTRICITY,01/02/2021,0.93,KENT COUNTY COUNCIL (KCS),4900,PARKING SERVICES
064923100041,ELECTRICITY,01/02/2021,2.1,KENT COUNTY COUNCIL (KCS),4900,PARKING SERVICES
064923100041,ELECTRICITY,01/02/2021,0.79,KENT COUNTY COUNCIL (KCS),4900,PROPERTY & FACILITIES
064923100041,ELECTRICITY,01/02/2021,0.68,KENT COUNTY COUNCIL (KCS),4900,PARKING SERVICES
064923100041,ELECTRICITY,01/02/2021,23.17,KENT COUNTY COUNCIL (KCS),4900,PARKING SERVICES
064923100041,ELECTRICITY,01/02/2021,440.27,KENT COUNTY COUNCIL (KCS),4900,PARKING SERVICES
064923100041,ELECTRICITY,01/02/2021,136.84,KENT COUNTY COUNCIL (KCS),4900,PARKING SERVICES
064923100041,ELECTRICITY,01/02/2021,2600,KENT COUNTY COUNCIL (KCS),4900,PARKING SERVICES
064923100041,GAS,01/02/2021,2173.66,KENT COUNTY COUNCIL (KCS),4900,LEISURE & CULTURE
064923100041,ELECTRICITY,01/02/2021,4292.28,KENT COUNTY COUNCIL (KCS),4900,LEISURE & CULTURE
064923100041,GAS,01/02/2021,536.74,KENT COUNTY COUNCIL (KCS),4900,LEISURE & CULTURE
064923100041,ELECTRICITY,01/02/2021,279.1,KENT COUNTY COUNCIL (KCS),4900,PROPERTY & FACILITIES
064923100041,ELECTRICITY,01/02/2021,75.84,KENT COUNTY COUNCIL (KCS),4900,PROPERTY & FACILITIES
064923100041,ELECTRICITY,01/02/2021,2612.05,KENT COUNTY COUNCIL (KCS),4900,PARKING SERVICES
064923100041,ELECTRICITY,01/02/2021,2.53,KENT COUNTY COUNCIL (KCS),4900,PROPERTY & FACILITIES
064923100041,ELECTRICITY,01/02/2021,267.98,KENT COUNTY COUNCIL (KCS),4900,PROPERTY & FACILITIES
064923100041,ELECTRICITY,01/02/2021,637.09,KENT COUNTY COUNCIL (KCS),4900,PROPERTY & FACILITIES
064923100041,ELECTRICITY,01/02/2021,24.78,KENT COUNTY COUNCIL (KCS),4900,PROPERTY & FACILITIES
064923100041,ELECTRICITY,01/02/2021,170.9,KENT COUNTY COUNCIL (KCS),4900,PROPERTY & FACILITIES
064923100041,ELECTRICITY,01/02/2021,985.97,KENT COUNTY COUNCIL (KCS),4900,PROPERTY & FACILITIES
064923100041,ELECTRICITY,01/02/2021,59.05,KENT COUNTY COUNCIL (KCS),4900,PROPERTY & FACILITIES
064923100041,ELECTRICITY,01/02/2021,16.05,KENT COUNTY COUNCIL (KCS),4900,PROPERTY & FACILITIES
064923100041,ELECTRICITY,01/02/2021,552.61,KENT COUNTY COUNCIL (KCS),4900,PARKING SERVICES
064923100041,ELECTRICITY,01/02/2021,0.53,KENT COUNTY COUNCIL (KCS),4900,PROPERTY & FACILITIES
064923100041,ELECTRICITY,01/02/2021,56.69,KENT COUNTY COUNCIL (KCS),4900,PROPERTY & FACILITIES
064923100041,ELECTRICITY,01/02/2021,134.78,KENT COUNTY COUNCIL (KCS),4900,PROPERTY & FACILITIES
064923100041,ELECTRICITY,01/02/2021,5.24,KENT COUNTY COUNCIL (KCS),4900,PROPERTY & FACILITIES
064923100041,ELECTRICITY,01/02/2021,36.16,KENT COUNTY COUNCIL (KCS),4900,PROPERTY & FACILITIES
064923100041,ELECTRICITY,01/02/2021,208.59,KENT COUNTY COUNCIL (KCS),4900,PROPERTY & FACILITIES
064923100041,GAS,01/02/2021,9.87,KENT COUNTY COUNCIL (KCS),4900,LEISURE & CULTURE
064923100041,GAS,01/02/2021,20.96,KENT COUNTY COUNCIL (KCS),4900,LEISURE & CULTURE
064923100041,ELECTRICITY,01/02/2021,38.67,KENT COUNTY COUNCIL (KCS),4900,HOUSING
064923100147,WATER,01/02/2021,383.14,SOUTHERN WATER SERVICES LTD,4900,HOUSING
064923100147,WATER,01/02/2021,173.16,SOUTHERN WATER SERVICES LTD,4900,HOUSING
064929100941,AGENCY STAFF,15/02/2021,1198.81,DRIVER HIRE GATWICK LTD,7361,WASTE & RECYLING
064929100941,AGENCY STAFF,15/02/2021,856.3,DRIVER HIRE GATWICK LTD,7361,WASTE & RECYLING
064929100941,AGENCY STAFF,15/02/2021,2740.37,DRIVER HIRE GATWICK LTD,7361,WASTE & RECYLING
064932103281,GRANTS PAID,01/02/2021,1356.6,"G2 Recruitment Solutions, a divi of G2V Recruitment Group",7361,ENVIRONMENTAL SERVICES/LICENSING
064936103971,PREMISES GENERAL REPAIRS,01/02/2021,960,Gala Lights Ltd,5039,ECONOMIC DEVELOPMENT
064939101805,EQUIPMENT & TOOLS-HIRE,15/02/2021,2796,Chevron Traffic Management Limited,4789,STREET SCENE & FLEET
064943103401,PROFESSIONAL FEES,01/02/2021,720,Victoria Berridge,8111,PROPERTY & FACILITIES
064948100651,AUDIT FEES,15/02/2021,11571.6,ERNST & YOUNG LLP,8931,CHIEF EXECUTIVE OFFICE
064968101725,AGENCY STAFF,01/02/2021,2310,SELLICK PARTNERSHIP LTD,7361,LEGAL & DEMOCRATIC
064969101088,PENSIONS & GRATUITY,15/02/2021,7710.3,WSCC PENSION FUND,9399,FINANCE
064970101088,REDUNDANCY COSTS,15/02/2021,12702.36,WSCC PENSION FUND,9399,CUSTOMER SERVICES
064973104009,WATER,01/02/2021,2.7,Advanced Demand Side Management Ltd,4900,PARKING SERVICES
064973104009,WATER,01/02/2021,9.44,Advanced Demand Side Management Ltd,4900,PARKING SERVICES
064973104009,WATER,01/02/2021,2.79,Advanced Demand Side Management Ltd,4900,PARKING SERVICES
064973104009,WATER,01/02/2021,2.79,Advanced Demand Side Management Ltd,4900,PARKING SERVICES
064973104009,WATER,01/02/2021,9.44,Advanced Demand Side Management Ltd,4900,PARKING SERVICES
064973104009,WATER,01/02/2021,2.7,Advanced Demand Side Management Ltd,4900,PARKING SERVICES
064973104009,ELECTRICITY,01/02/2021,2.7,Advanced Demand Side Management Ltd,4900,PARKING SERVICES
064973104009,ELECTRICITY,01/02/2021,2.79,Advanced Demand Side Management Ltd,4900,PARKING SERVICES
064973104009,ELECTRICITY,01/02/2021,9.44,Advanced Demand Side Management Ltd,4900,PARKING SERVICES
064973104009,WATER,01/02/2021,28.26,Advanced Demand Side Management Ltd,4900,HOUSING
064973104009,WATER,01/02/2021,98.91,Advanced Demand Side Management Ltd,4900,HOUSING
064973104009,WATER,01/02/2021,29.2,Advanced Demand Side Management Ltd,4900,HOUSING
064973104009,WATER,01/02/2021,4.66,Advanced Demand Side Management Ltd,4900,PROPERTY & FACILITIES
064973104009,WATER,01/02/2021,4.81,Advanced Demand Side Management Ltd,4900,PROPERTY & FACILITIES
064973104009,WATER,01/02/2021,16.3,Advanced Demand Side Management Ltd,4900,PROPERTY & FACILITIES
064973104009,WATER,01/02/2021,16.3,Advanced Demand Side Management Ltd,4900,PROPERTY & FACILITIES
064973104009,WATER,01/02/2021,4.66,Advanced Demand Side Management Ltd,4900,PROPERTY & FACILITIES
064973104009,WATER,01/02/2021,4.81,Advanced Demand Side Management Ltd,4900,PROPERTY & FACILITIES
064973104009,WATER,01/02/2021,3.31,Advanced Demand Side Management Ltd,4900,LEISURE & CULTURE
064973104009,WATER,01/02/2021,3.38,Advanced Demand Side Management Ltd,4900,LEISURE & CULTURE
064973104009,WATER,01/02/2021,12.27,Advanced Demand Side Management Ltd,4900,LEISURE & CULTURE
064973104009,WATER,01/02/2021,31.38,Advanced Demand Side Management Ltd,4900,PARKING SERVICES
064973104009,WATER,01/02/2021,109.3,Advanced Demand Side Management Ltd,4900,PARKING SERVICES
064973104009,WATER,01/02/2021,34.55,Advanced Demand Side Management Ltd,4900,PARKING SERVICES
064973104009,WATER,01/02/2021,6.09,Advanced Demand Side Management Ltd,4900,ECONOMIC DEVELOPMENT
064973104009,WATER,01/02/2021,4.67,Advanced Demand Side Management Ltd,4900,ECONOMIC DEVELOPMENT
064973104009,WATER,01/02/2021,20.39,Advanced Demand Side Management Ltd,4900,ECONOMIC DEVELOPMENT
064973104009,WATER,01/02/2021,35.16,Advanced Demand Side Management Ltd,4900,ECONOMIC DEVELOPMENT
064973104009,WATER,01/02/2021,10.38,Advanced Demand Side Management Ltd,4900,ECONOMIC DEVELOPMENT
064973104009,WATER,01/02/2021,10.05,Advanced Demand Side Management Ltd,4900,ECONOMIC DEVELOPMENT
064973104009,ELECTRICITY,01/02/2021,9.44,Advanced Demand Side Management Ltd,4900,PARKING SERVICES
064973104009,ELECTRICITY,01/02/2021,2.7,Advanced Demand Side Management Ltd,4900,PARKING SERVICES
064973104009,ELECTRICITY,01/02/2021,2.79,Advanced Demand Side Management Ltd,4900,PARKING SERVICES
064973104009,WATER,01/02/2021,6.86,Advanced Demand Side Management Ltd,4900,HOUSING
064973104009,WATER,01/02/2021,1.96,Advanced Demand Side Management Ltd,4900,HOUSING
064973104009,WATER,01/02/2021,2.03,Advanced Demand Side Management Ltd,4900,HOUSING
064973104009,WATER,01/02/2021,9.44,Advanced Demand Side Management Ltd,4900,PARKING SERVICES
064973104009,WATER,01/02/2021,2.79,Advanced Demand Side Management Ltd,4900,PARKING SERVICES
064973104009,WATER,01/02/2021,2.7,Advanced Demand Side Management Ltd,4900,PARKING SERVICES
064973104009,WATER,01/02/2021,2.7,Advanced Demand Side Management Ltd,4900,PARKING SERVICES
064973104009,WATER,01/02/2021,2.79,Advanced Demand Side Management Ltd,4900,PARKING SERVICES
064973104009,WATER,01/02/2021,9.44,Advanced Demand Side Management Ltd,4900,PARKING SERVICES
064973104009,WATER,01/02/2021,17.23,Advanced Demand Side Management Ltd,4900,PROPERTY & FACILITIES
064973104009,WATER,01/02/2021,17.81,Advanced Demand Side Management Ltd,4900,PROPERTY & FACILITIES
064973104009,WATER,01/02/2021,60.32,Advanced Demand Side Management Ltd,4900,PROPERTY & FACILITIES
064973104009,WATER,01/02/2021,7.98,Advanced Demand Side Management Ltd,4900,PROPERTY & FACILITIES
064973104009,WATER,01/02/2021,8.13,Advanced Demand Side Management Ltd,4900,PROPERTY & FACILITIES
064973104009,WATER,01/02/2021,29.58,Advanced Demand Side Management Ltd,4900,PROPERTY & FACILITIES
064973104009,WATER,01/02/2021,5.79,Advanced Demand Side Management Ltd,4900,PROPERTY & FACILITIES
064973104009,WATER,01/02/2021,20.25,Advanced Demand Side Management Ltd,4900,PROPERTY & FACILITIES
064973104009,WATER,01/02/2021,5.98,Advanced Demand Side Management Ltd,4900,PROPERTY & FACILITIES
064973104009,WATER,01/02/2021,42.91,Advanced Demand Side Management Ltd,4900,PROPERTY & FACILITIES
064973104009,WATER,01/02/2021,150.19,Advanced Demand Side Management Ltd,4900,PROPERTY & FACILITIES
064973104009,WATER,01/02/2021,44.34,Advanced Demand Side Management Ltd,4900,PROPERTY & FACILITIES
064989100317,TREE MAINTENANCE,01/02/2021,2254.91,CLASSIC SERVICES GROUP LTD,7393,LEISURE & CULTURE
064990100317,TREE MAINTENANCE,01/02/2021,1861.25,CLASSIC SERVICES GROUP LTD,7393,LEISURE & CULTURE
064992101088,REDUNDANCY COSTS,15/02/2021,31726.94,WSCC PENSION FUND,9399,BUILDING CONTROL
064993102725,ELECTRICITY,22/02/2021,519.78,HORSHAM DISTRICT INDOOR BOWLS CLUB LTD,7997,LEISURE & CULTURE
064996100430,ICT CONTRACTS,01/02/2021,720,AXLR8.COM LTD,4816,LEGAL & DEMOCRATIC
064997104111,IT EQUIPMENT PURCHASE,08/02/2021,11994,Housing Partners Ltd,5045,HOUSING
065000102816,AGENCY STAFF,08/02/2021,2929.18,BDS (Northern) Ltd,NA,BUILDING CONTROL
065001102449,ICT CONTRACTS,08/02/2021,68448.12,TECHNOLOGY ONE (UK) LTD,7372,FINANCE
065006104120,GRANTS PAID,15/02/2021,690,Transition Horsham,7999,CHIEF EXECUTIVE OFFICE
065007100356,OTHER CONTRACT SERVICES,08/02/2021,95035.2,PLACES FOR PEOPLE,7999,LEISURE & CULTURE
065008103471,MINOR VEHICLE ITEMS / SUNDRIES,08/02/2021,1038,E Rand & Sons Ltd,5013,STREET SCENE & FLEET
065009100356,OTHER CONTRACT SERVICES,08/02/2021,26721.6,PLACES FOR PEOPLE,7999,LEISURE & CULTURE
065011100356,OTHER CONTRACT SERVICES,08/02/2021,173690.4,PLACES FOR PEOPLE,7999,LEISURE & CULTURE
065017100917,BOARD & LODGING CHARGES,01/02/2021,2340.42,WIMBLEHURST HOTEL,7011,HOUSING
065019103031,BOARD & LODGING CHARGES,01/02/2021,371,Hove Wardley Co Ltd,NA,HOUSING
065019103031,BOARD & LODGING CHARGES,01/02/2021,389.55,Hove Wardley Co Ltd,NA,HOUSING
065022100303,ICT CONTRACTS,15/02/2021,870,EXPERIAN LTD,7321,WASTE & RECYLING
065024100123,EQUIPMENT & TOOLS-PURCHASE,15/02/2021,1671.64,GLASDON U.K. LIMITED,7349,STREET SCENE & FLEET
065025101230,AGENCY STAFF,08/02/2021,1200,M W VEHICLE ENGINEERS LTD,5013,STREET SCENE & FLEET
065031102429,DISPOSAL COSTS,15/02/2021,2429,BRITANIACREST RECYCLING LTD,7392,WASTE & RECYLING
065032102429,DISPOSAL COSTS,15/02/2021,5388.48,BRITANIACREST RECYCLING LTD,7392,WASTE & RECYLING
065033102429,DISPOSAL COSTS,15/02/2021,6396,BRITANIACREST RECYCLING LTD,7392,WASTE & RECYLING
065034102429,EQUIPMENT & TOOLS-HIRE,15/02/2021,900,BRITANIACREST RECYCLING LTD,7392,WASTE & RECYLING
065034102429,DISPOSAL COSTS,15/02/2021,448.89,BRITANIACREST RECYCLING LTD,7392,WASTE & RECYLING
065041101003,USE OF CONSULTANTS,08/02/2021,504,READING AGRICULTURAL CONSULTANTS LTD,7399,DEVELOPMENT
065043100246,LANDSCAPE WORKS (INC FENCING & GARDENING,15/02/2021,6968.4,BARCHAM TREES LTD,780,LEISURE & CULTURE
065057100250,PAYMENTS MADE FOR SERVICES,01/02/2021,5508,ADUR DISTRICT COUNCIL,8651,FINANCE
065060101003,USE OF CONSULTANTS,08/02/2021,504,READING AGRICULTURAL CONSULTANTS LTD,7399,DEVELOPMENT
065061101003,USE OF CONSULTANTS,08/02/2021,504,READING AGRICULTURAL CONSULTANTS LTD,7399,DEVELOPMENT
065062103922,USE OF CONSULTANTS,08/02/2021,10536,"Knight, Kavanagh & Page",7392,SPATIAL PLANNING
065066100530,EQUIPMENT & TOOLS-REPAIR & MNT,01/02/2021,1260,CHROMA VISION,7393,HOUSING
065074100408,SHORT COURSE FEES,22/02/2021,632.4,ST JOHN AMBULANCE SUSSEX,8299,HUMAN RESOURCES & ORG DEVELOPMENT
065077100941,AGENCY STAFF,15/02/2021,856.3,DRIVER HIRE GATWICK LTD,7361,WASTE & RECYLING
065077100941,AGENCY STAFF,15/02/2021,4795.26,DRIVER HIRE GATWICK LTD,7361,WASTE & RECYLING
065079100714,MOBILE CALLS & RENTAL,08/02/2021,1927.84,VODAFONE LTD,4814,TECHNOLOGY
065080104126,PROFESSIONAL PRODUCTIONS,01/02/2021,1850,Scott Marshall Partners,7929,LEISURE & CULTURE
065082103771,REACTIVE MAINTENANCE,01/02/2021,1039.5,Scotscape Smartscape Limited,780,PARKING SERVICES
065083101686,VEHICLE PLANNED REPAIRS/MAINT,08/02/2021,748.8,LICENCE BUREAU LTD,4789,STREET SCENE & FLEET
065086100330,ICT CONTRACTS,01/02/2021,1612.8,NLA MEDIA ACCESS LTD,8999,COMMUNICATIONS
065087103281,GRANTS PAID,08/02/2021,1387.2,"G2 Recruitment Solutions, a divi of G2V Recruitment Group",7361,ENVIRONMENTAL SERVICES/LICENSING
065127100218,PROJECT SUPPORT,08/02/2021,11322.25,SUSSEX WILDLIFE TRUST,9405,PERFORMANCE AND PROJECT ASSURANCE
065142100073,MINOR VEHICLE ITEMS / SUNDRIES,08/02/2021,586.57,BTR BRAKES (SUSSEX) LTD,5511,STREET SCENE & FLEET
065147100057,PURCHASE OF PROVISIONS,22/02/2021,155.48,Selecta UK Ltd,5499,PROPERTY & FACILITIES
065147100057,EQUIPMENT & TOOLS-HIRE,22/02/2021,155.48,Selecta UK Ltd,5499,STREET SCENE & FLEET
065147100057,PURCHASE OF PROVISIONS,22/02/2021,400.33,Selecta UK Ltd,5499,STREET SCENE & FLEET
065149100484,TYRES & TUBES (INCL. FITTING),22/02/2021,2315.2,BANDVULC PLUS+,5511,STREET SCENE & FLEET
065168100151,UNPLANNED REPAIRS & MAINTENANCE,08/02/2021,2578.8,TRAFALGAR CLEANING EQUIPMENT,7349,STREET SCENE & FLEET
065173100818,SHORT COURSE FEES,08/02/2021,600,MBL SEMINARS LTD,8299,LEGAL & DEMOCRATIC
065175100061,GENERAL MATERIALS,22/02/2021,683.52,ESE WORLD LTD,5046,WASTE & RECYLING
065175100061,GENERAL MATERIALS,22/02/2021,1659,ESE WORLD LTD,5046,WASTE & RECYLING
065185101155,ICT CONTRACTS,08/02/2021,1302,R-COM CONSULTING LTD,7379,TECHNOLOGY
065203101805,EQUIPMENT & TOOLS-HIRE,22/02/2021,618,Chevron Traffic Management Limited,4789,STREET SCENE & FLEET
065269101725,AGENCY STAFF,08/02/2021,2442,SELLICK PARTNERSHIP LTD,7361,LEGAL & DEMOCRATIC
065278100317,TREE MAINTENANCE,22/02/2021,637.94,CLASSIC SERVICES GROUP LTD,7393,PARKING SERVICES
065279100317,TREE MAINTENANCE,08/02/2021,668.48,CLASSIC SERVICES GROUP LTD,7393,LEISURE & CULTURE
065290100317,TREE MAINTENANCE,08/02/2021,1261.06,CLASSIC SERVICES GROUP LTD,7393,LEISURE & CULTURE
065292100522,MISCELLANEOUS INCOME,15/02/2021,500,BEECHCROFT LANDSCAPES,780,LEISURE & CULTURE
065299100714,MOBILE CALLS & RENTAL,08/02/2021,679.2,VODAFONE LTD,4814,TECHNOLOGY
065326101725,AGENCY STAFF,08/02/2021,990,SELLICK PARTNERSHIP LTD,7361,LEGAL & DEMOCRATIC
065327101725,AGENCY STAFF,08/02/2021,1386,SELLICK PARTNERSHIP LTD,7361,LEGAL & DEMOCRATIC
065328102816,AGENCY STAFF,22/02/2021,3686.78,BDS (Northern) Ltd,NA,BUILDING CONTROL
065334102541,ICT CONTRACTS,08/02/2021,960,NLIGHTN-IT LTD,4816,TECHNOLOGY
065336100917,BOARD & LODGING CHARGES,08/02/2021,1586.78,WIMBLEHURST HOTEL,7011,HOUSING
065336100917,BOARD & LODGING CHARGES,08/02/2021,686,WIMBLEHURST HOTEL,7011,HOUSING
065343104115,LANDSCAPE WORKS (INC FENCING & GARDENING,22/02/2021,702,Carter & Faraday Associates Ltd,780,PROPERTY & FACILITIES
065345100955,USE OF CONSULTANTS,15/02/2021,990.7,SEAHAVEN FOOD SAFETY,8999,ENVIRONMENTAL SERVICES/LICENSING
065362103031,BOARD & LODGING CHARGES,08/02/2021,389.55,Hove Wardley Co Ltd,NA,HOUSING
065362103031,BOARD & LODGING CHARGES,08/02/2021,371,Hove Wardley Co Ltd,NA,HOUSING
065365104127,BOARD & LODGING CHARGES,08/02/2021,840,Bernice Gandolfi,1520,HOUSING
065366104127,BOARD & LODGING CHARGES,08/02/2021,600,Bernice Gandolfi,1520,HOUSING
065369102429,EQUIPMENT & TOOLS-HIRE,22/02/2021,1625.76,BRITANIACREST RECYCLING LTD,7392,WASTE & RECYLING
065370102429,DISPOSAL COSTS,22/02/2021,5160.48,BRITANIACREST RECYCLING LTD,7392,WASTE & RECYLING
065372102429,DISPOSAL COSTS,22/02/2021,6102.72,BRITANIACREST RECYCLING LTD,7392,WASTE & RECYLING
065373102429,DISPOSAL COSTS,22/02/2021,1483.59,BRITANIACREST RECYCLING LTD,7392,WASTE & RECYLING
065378101230,AGENCY STAFF,15/02/2021,1200,M W VEHICLE ENGINEERS LTD,5013,STREET SCENE & FLEET
065381102078,POSTAGE PACKAGING DISTRIBUTION,15/02/2021,660.48,CIVICA ELECTION SERVICES LTD,2741,LEGAL & DEMOCRATIC
065381102078,EXTERNAL PRINTING SERVICES,15/02/2021,91.52,CIVICA ELECTION SERVICES LTD,2741,LEGAL & DEMOCRATIC
065383103708,ICT CONTRACTS,22/02/2021,8227.5,RingCentral UK Ltd,4812,TECHNOLOGY
065385102347,ICT CONTRACTS,22/02/2021,4893.6,BARTEC AUTO ID LTD,5013,WASTE & RECYLING
065385102347,ICT CONTRACTS,22/02/2021,16365.6,BARTEC AUTO ID LTD,5013,WASTE & RECYLING
065385102347,ICT CONTRACTS,22/02/2021,5692.8,BARTEC AUTO ID LTD,5013,STREET SCENE & FLEET
065388100065,EQUIPMENT & TOOLS-PURCHASE,15/02/2021,708.95,ATS MACHINERY LTD,7699,LEISURE & CULTURE
065403100587,PREMISES GENERAL REPAIRS,22/02/2021,1221,WHITE LIGHT LTD,7394,LEISURE & CULTURE
065418101418,EQUIPMENT & TOOLS-PURCHASE,22/02/2021,599.37,FLOWBIRD SMART CITY UK LTD PARKEON LTD,4789,PARKING SERVICES
065418101418,EQUIPMENT & TOOLS-PURCHASE,22/02/2021,242.37,FLOWBIRD SMART CITY UK LTD PARKEON LTD,4789,PARKING SERVICES
065418101418,EQUIPMENT & TOOLS-PURCHASE,22/02/2021,484.72,FLOWBIRD SMART CITY UK LTD PARKEON LTD,4789,PARKING SERVICES
065419103281,GRANTS PAID,15/02/2021,1417.8,"G2 Recruitment Solutions, a divi of G2V Recruitment Group",7361,ENVIRONMENTAL SERVICES/LICENSING
065460100317,TREE MAINTENANCE,22/02/2021,637.94,CLASSIC SERVICES GROUP LTD,7393,LEISURE & CULTURE
065502102106,PROFESSIONAL FEES,15/02/2021,1200,SILVERTIP FILMS,7333,ECONOMIC DEVELOPMENT
065503100101,RENTS,15/02/2021,2271.92,STONEWATER LTD,8398,HOUSING
065513100517,CONTRACT CLEANING,22/02/2021,177.73,MONITOR CLEANING SERVICES LTD,7349,PROPERTY & FACILITIES
065513100517,CONTRACT CLEANING,22/02/2021,177.71,MONITOR CLEANING SERVICES LTD,7349,PARKING SERVICES
065513100517,CONTRACT CLEANING,22/02/2021,177.71,MONITOR CLEANING SERVICES LTD,7349,PROPERTY & FACILITIES
065513100517,CONTRACT CLEANING,22/02/2021,177.71,MONITOR CLEANING SERVICES LTD,7349,PROPERTY & FACILITIES
065513100517,CONTRACT CLEANING,22/02/2021,177.71,MONITOR CLEANING SERVICES LTD,7349,PROPERTY & FACILITIES
065515100927,ADJUDICATION SERVICE FEES,22/02/2021,669.6,PATROL,9222,PARKING SERVICES
065516101693,ICT CONTRACTS,15/02/2021,5159.99,ACCESS INTELLIGENCE MEDIA & COMMUNITCATIONS LTD,5065,COMMUNICATIONS
065517104056,BOARD & LODGING CHARGES,15/02/2021,1710,Mrs J K Sykes-Strudwick t/a Cavatina Guest House,7392,HOUSING
065520100094,POSTAGE PACKAGING DISTRIBUTION,22/02/2021,540.54,ROYAL MAIL,7399,LEGAL & DEMOCRATIC
065520100094,POSTAGE PACKAGING DISTRIBUTION,22/02/2021,459.46,ROYAL MAIL,7399,LEGAL & DEMOCRATIC
065526103883,SUBSCRIPTIONS TO ORGANISATIONS,15/02/2021,1188,BankSearch Information Consultancy Ltd,7392,ECONOMIC DEVELOPMENT
065537104129,PURCHASE OF EXHIBITS,15/02/2021,675,Justin Croft Antiquarian Books Ltd,5942,LEISURE & CULTURE
065558100317,TREE MAINTENANCE,22/02/2021,873.56,CLASSIC SERVICES GROUP LTD,7393,LEISURE & CULTURE
065560101725,AGENCY STAFF,15/02/2021,1320,SELLICK PARTNERSHIP LTD,7361,LEGAL & DEMOCRATIC
065561101725,AGENCY STAFF,15/02/2021,2574,SELLICK PARTNERSHIP LTD,7361,LEGAL & DEMOCRATIC
065585104097,VOLUNTARY & COMMUNITY GRANTS,15/02/2021,1855,Billingshurst Dairies Ltd,NA,ECONOMIC DEVELOPMENT
065586104075,VOLUNTARY & COMMUNITY GRANTS,15/02/2021,551.88,Zoe Nicholas / The Elegant Feast - Frozen,5811,ECONOMIC DEVELOPMENT
065587100306,CONTRACT CLEANING,15/02/2021,799.92,Incor Group Management Ltd INCOR GROUP,7349,LEISURE & CULTURE
065589101040,KENNELLING COSTS,15/02/2021,2520,HAMMERPOND KENNELS & CATTERY,7299,ENVIRONMENTAL SERVICES/LICENSING
065591102974,VOLUNTARY & COMMUNITY GRANTS,22/02/2021,3500,SETAS Ltd,7361,ECONOMIC DEVELOPMENT
065593101230,AGENCY STAFF,15/02/2021,1200,M W VEHICLE ENGINEERS LTD,5013,STREET SCENE & FLEET
065598100527,ICT CONTRACTS,15/02/2021,4712.89,IMMERVOX LTD,4814,TECHNOLOGY
065604103925,USE OF CONSULTANTS,15/02/2021,13032,Stantec Uk Ltd,7392,SPATIAL PLANNING
065632103192,MISCELLANEOUS INCOME FEES,15/02/2021,672,Sullington Manor Farm Ltd,NA,BUILDING CONTROL
065662104009,WATER,15/02/2021,6.09,Advanced Demand Side Management Ltd,4900,ECONOMIC DEVELOPMENT
065662104009,WATER,15/02/2021,6.09,Advanced Demand Side Management Ltd,4900,ECONOMIC DEVELOPMENT
065662104009,WATER,15/02/2021,29.2,Advanced Demand Side Management Ltd,4900,HOUSING
065662104009,WATER,15/02/2021,29.2,Advanced Demand Side Management Ltd,4900,HOUSING
065662104009,WATER,15/02/2021,2.03,Advanced Demand Side Management Ltd,4900,HOUSING
065662104009,WATER,15/02/2021,2.03,Advanced Demand Side Management Ltd,4900,HOUSING
065662104009,WATER,15/02/2021,17.81,Advanced Demand Side Management Ltd,4900,PROPERTY & FACILITIES
065662104009,WATER,15/02/2021,17.81,Advanced Demand Side Management Ltd,4900,PROPERTY & FACILITIES
065662104009,WATER,15/02/2021,10.38,Advanced Demand Side Management Ltd,4900,ECONOMIC DEVELOPMENT
065662104009,WATER,15/02/2021,10.38,Advanced Demand Side Management Ltd,4900,ECONOMIC DEVELOPMENT
065662104009,WATER,15/02/2021,2.79,Advanced Demand Side Management Ltd,4900,PARKING SERVICES
065662104009,WATER,15/02/2021,2.79,Advanced Demand Side Management Ltd,4900,PARKING SERVICES
065662104009,WATER,15/02/2021,35.79,Advanced Demand Side Management Ltd,4900,LEISURE & CULTURE
065662104009,WATER,15/02/2021,37.21,Advanced Demand Side Management Ltd,4900,LEISURE & CULTURE
065662104009,WATER,15/02/2021,37.21,Advanced Demand Side Management Ltd,4900,LEISURE & CULTURE
065662104009,WATER,15/02/2021,121.89,Advanced Demand Side Management Ltd,4900,LEISURE & CULTURE
065662104009,WATER,15/02/2021,37.21,Advanced Demand Side Management Ltd,4900,LEISURE & CULTURE
065662104009,WATER,15/02/2021,6.86,Advanced Demand Side Management Ltd,4900,STREET SCENE & FLEET
065662104009,WATER,15/02/2021,1.96,Advanced Demand Side Management Ltd,4900,STREET SCENE & FLEET
065662104009,WATER,15/02/2021,2.03,Advanced Demand Side Management Ltd,4900,STREET SCENE & FLEET
065662104009,WATER,15/02/2021,2.03,Advanced Demand Side Management Ltd,4900,STREET SCENE & FLEET
065662104009,WATER,15/02/2021,2.03,Advanced Demand Side Management Ltd,4900,STREET SCENE & FLEET
065662104009,WATER,15/02/2021,2.79,Advanced Demand Side Management Ltd,4900,PARKING SERVICES
065662104009,WATER,15/02/2021,2.79,Advanced Demand Side Management Ltd,4900,PARKING SERVICES
065662104009,WATER,15/02/2021,11.45,Advanced Demand Side Management Ltd,4900,PROPERTY & FACILITIES
065662104009,WATER,15/02/2021,8.13,Advanced Demand Side Management Ltd,4900,PROPERTY & FACILITIES
065662104009,WATER - UNMETERED,15/02/2021,2.03,Advanced Demand Side Management Ltd,4900,ECONOMIC DEVELOPMENT
065662104009,WATER - UNMETERED,15/02/2021,2.03,Advanced Demand Side Management Ltd,4900,ECONOMIC DEVELOPMENT
065662104009,WATER - UNMETERED,15/02/2021,8.21,Advanced Demand Side Management Ltd,4900,ECONOMIC DEVELOPMENT
065662104009,WATER - UNMETERED,15/02/2021,3.38,Advanced Demand Side Management Ltd,4900,ECONOMIC DEVELOPMENT
065662104009,WATER - UNMETERED,15/02/2021,1.96,Advanced Demand Side Management Ltd,4900,ECONOMIC DEVELOPMENT
065662104009,WATER - UNMETERED,15/02/2021,2.03,Advanced Demand Side Management Ltd,4900,ECONOMIC DEVELOPMENT
065662104009,WATER - UNMETERED,15/02/2021,1.96,Advanced Demand Side Management Ltd,4900,ECONOMIC DEVELOPMENT
065662104009,WATER - UNMETERED,15/02/2021,6.86,Advanced Demand Side Management Ltd,4900,ECONOMIC DEVELOPMENT
065662104009,WATER - UNMETERED,15/02/2021,2.03,Advanced Demand Side Management Ltd,4900,ECONOMIC DEVELOPMENT
065662104009,WATER - UNMETERED,15/02/2021,2.03,Advanced Demand Side Management Ltd,4900,ECONOMIC DEVELOPMENT
065662104009,WATER,15/02/2021,2.03,Advanced Demand Side Management Ltd,4900,ECONOMIC DEVELOPMENT
065662104009,WATER,15/02/2021,2.03,Advanced Demand Side Management Ltd,4900,ECONOMIC DEVELOPMENT
065662104009,WATER,15/02/2021,2.03,Advanced Demand Side Management Ltd,4900,ECONOMIC DEVELOPMENT
065662104009,WATER,15/02/2021,6.86,Advanced Demand Side Management Ltd,4900,ECONOMIC DEVELOPMENT
065662104009,WATER,15/02/2021,1.96,Advanced Demand Side Management Ltd,4900,ECONOMIC DEVELOPMENT
065662104009,WATER,15/02/2021,3.31,Advanced Demand Side Management Ltd,4900,ECONOMIC DEVELOPMENT
065662104009,WATER,15/02/2021,2.03,Advanced Demand Side Management Ltd,4900,ECONOMIC DEVELOPMENT
065662104009,WATER,15/02/2021,3.38,Advanced Demand Side Management Ltd,4900,ECONOMIC DEVELOPMENT
065662104009,WATER,15/02/2021,2.03,Advanced Demand Side Management Ltd,4900,ECONOMIC DEVELOPMENT
065662104009,WATER,15/02/2021,9.57,Advanced Demand Side Management Ltd,4900,ECONOMIC DEVELOPMENT
065662104009,WATER,15/02/2021,2.79,Advanced Demand Side Management Ltd,4900,PARKING SERVICES
065662104009,WATER,15/02/2021,2.79,Advanced Demand Side Management Ltd,4900,PARKING SERVICES
065662104009,WATER,15/02/2021,31.38,Advanced Demand Side Management Ltd,4900,PARKING SERVICES
065662104009,WATER,15/02/2021,34.71,Advanced Demand Side Management Ltd,4900,PARKING SERVICES
065662104009,WATER,15/02/2021,3.38,Advanced Demand Side Management Ltd,4900,LEISURE & CULTURE
065662104009,WATER,15/02/2021,3.38,Advanced Demand Side Management Ltd,4900,LEISURE & CULTURE
065662104009,WATER,15/02/2021,4.81,Advanced Demand Side Management Ltd,4900,PROPERTY & FACILITIES
065662104009,WATER,15/02/2021,4.81,Advanced Demand Side Management Ltd,4900,PROPERTY & FACILITIES
065662104009,ELECTRICITY,15/02/2021,2.79,Advanced Demand Side Management Ltd,4900,PARKING SERVICES
065662104009,ELECTRICITY,15/02/2021,2.79,Advanced Demand Side Management Ltd,4900,PARKING SERVICES
065662104009,WATER,15/02/2021,2.79,Advanced Demand Side Management Ltd,4900,PARKING SERVICES
065662104009,WATER,15/02/2021,2.79,Advanced Demand Side Management Ltd,4900,PARKING SERVICES
065662104009,WATER,15/02/2021,67.77,Advanced Demand Side Management Ltd,4900,LEISURE & CULTURE
065662104009,WATER,15/02/2021,71.24,Advanced Demand Side Management Ltd,4900,LEISURE & CULTURE
065662104009,WATER,15/02/2021,71.24,Advanced Demand Side Management Ltd,4900,LEISURE & CULTURE
065662104009,WATER,15/02/2021,71.24,Advanced Demand Side Management Ltd,4900,LEISURE & CULTURE
065662104009,WATER,15/02/2021,232.2,Advanced Demand Side Management Ltd,4900,LEISURE & CULTURE
065662104009,WATER,15/02/2021,4.81,Advanced Demand Side Management Ltd,4900,PROPERTY & FACILITIES
065662104009,WATER,15/02/2021,4.81,Advanced Demand Side Management Ltd,4900,PROPERTY & FACILITIES
065662104009,ELECTRICITY,15/02/2021,2.79,Advanced Demand Side Management Ltd,4900,PARKING SERVICES
065662104009,ELECTRICITY,15/02/2021,2.79,Advanced Demand Side Management Ltd,4900,PARKING SERVICES
065662104009,WATER,15/02/2021,3.38,Advanced Demand Side Management Ltd,4900,ECONOMIC DEVELOPMENT
065662104009,WATER,15/02/2021,3.38,Advanced Demand Side Management Ltd,4900,ECONOMIC DEVELOPMENT
065662104009,WATER,15/02/2021,13.63,Advanced Demand Side Management Ltd,4900,ECONOMIC DEVELOPMENT
065662104009,WATER,15/02/2021,4.67,Advanced Demand Side Management Ltd,4900,ECONOMIC DEVELOPMENT
065662104009,WATER,15/02/2021,3.38,Advanced Demand Side Management Ltd,4900,ECONOMIC DEVELOPMENT
065662104009,WATER,15/02/2021,44.34,Advanced Demand Side Management Ltd,4900,PROPERTY & FACILITIES
065662104009,WATER,15/02/2021,44.34,Advanced Demand Side Management Ltd,4900,PROPERTY & FACILITIES
065662104009,WATER,15/02/2021,5.98,Advanced Demand Side Management Ltd,4900,PROPERTY & FACILITIES
065662104009,WATER,15/02/2021,5.98,Advanced Demand Side Management Ltd,4900,PROPERTY & FACILITIES
065665102678,PAYMENT FACILITIES,22/02/2021,2065.7,PARK NOW LTD,6012,PARKING SERVICES
065668100917,BOARD & LODGING CHARGES,15/02/2021,1820.13,WIMBLEHURST HOTEL,7011,HOUSING
065668100917,BOARD & LODGING CHARGES,15/02/2021,539.01,WIMBLEHURST HOTEL,7011,HOUSING
065676103031,BOARD & LODGING CHARGES,15/02/2021,371,Hove Wardley Co Ltd,NA,HOUSING
065676103031,BOARD & LODGING CHARGES,15/02/2021,212,Hove Wardley Co Ltd,NA,HOUSING
065676103031,BOARD & LODGING CHARGES,15/02/2021,166.95,Hove Wardley Co Ltd,NA,HOUSING
065681100380,PROJECT SUPPORT,15/02/2021,3210,R J JOCHIMSEN CONTRACTORS LTD,780,LEISURE & CULTURE
065701104083,BOARD & LODGING CHARGES,22/02/2021,900,Hotel Ventures Ltd   (Little Foxes Hotel),3514,HOUSING
065702104083,BOARD & LODGING CHARGES,22/02/2021,900,Hotel Ventures Ltd   (Little Foxes Hotel),3514,HOUSING
065708100618,ICT CONTRACTS,22/02/2021,1538.4,TOTALMOBILE LTD,4812,FINANCE
065755100044,PROFESSIONAL FEES,22/02/2021,10460.93,ARUN DISTRICT COUNCIL,8651,BUILDING CONTROL
065759103281,GRANTS PAID,22/02/2021,1338.9,"G2 Recruitment Solutions, a divi of G2V Recruitment Group",7361,ENVIRONMENTAL SERVICES/LICENSING
065762104130,SHORT COURSE FEES,22/02/2021,1190,Pet Industry Federation Ltd,7392,ENVIRONMENTAL SERVICES/LICENSING
065783101448,LANDSCAPE WORKS (INC FENCING & GARDENING,22/02/2021,75.52,IDVERDE LTD,780,PROPERTY & FACILITIES
065783101448,LANDSCAPE WORKS (INC FENCING & GARDENING,22/02/2021,15.99,IDVERDE LTD,780,PROPERTY & FACILITIES
065783101448,LANDSCAPE WORKS (INC FENCING & GARDENING,22/02/2021,23.38,IDVERDE LTD,780,LEISURE & CULTURE
065783101448,LANDSCAPE WORKS (INC FENCING & GARDENING,22/02/2021,28.26,IDVERDE LTD,780,PARKING SERVICES
065783101448,LANDSCAPE WORKS (INC FENCING & GARDENING,22/02/2021,55.95,IDVERDE LTD,780,PARKING SERVICES
065783101448,LANDSCAPE WORKS (INC FENCING & GARDENING,22/02/2021,43.91,IDVERDE LTD,780,PARKING SERVICES
065783101448,LANDSCAPE WORKS (INC FENCING & GARDENING,22/02/2021,8.77,IDVERDE LTD,780,PARKING SERVICES
065783101448,LANDSCAPE WORKS (INC FENCING & GARDENING,22/02/2021,2.16,IDVERDE LTD,780,PARKING SERVICES
065783101448,LANDSCAPE WORKS (INC FENCING & GARDENING,22/02/2021,3.29,IDVERDE LTD,780,PARKING SERVICES
065783101448,LANDSCAPE WORKS (INC FENCING & GARDENING,22/02/2021,7.68,IDVERDE LTD,780,PARKING SERVICES
065783101448,LANDSCAPE WORKS (INC FENCING & GARDENING,22/02/2021,42.37,IDVERDE LTD,780,PARKING SERVICES
065783101448,LANDSCAPE WORKS (INC FENCING & GARDENING,22/02/2021,14.27,IDVERDE LTD,780,PARKING SERVICES
065783101448,LANDSCAPE WORKS (INC FENCING & GARDENING,22/02/2021,35.65,IDVERDE LTD,780,PARKING SERVICES
065783101448,LANDSCAPE WORKS (INC FENCING & GARDENING,22/02/2021,10.97,IDVERDE LTD,780,PARKING SERVICES
065783101448,LANDSCAPE WORKS (INC FENCING & GARDENING,22/02/2021,27.44,IDVERDE LTD,780,PARKING SERVICES
065783101448,LANDSCAPE WORKS (INC FENCING & GARDENING,22/02/2021,7.68,IDVERDE LTD,780,PARKING SERVICES
065783101448,LANDSCAPE WORKS (INC FENCING & GARDENING,22/02/2021,240.4,IDVERDE LTD,780,PARKING SERVICES
065783101448,LANDSCAPE WORKS (INC FENCING & GARDENING,22/02/2021,2.19,IDVERDE LTD,780,PARKING SERVICES
065783101448,LANDSCAPE WORKS (INC FENCING & GARDENING,22/02/2021,8.2,IDVERDE LTD,780,PARKING SERVICES
065783101448,LANDSCAPE WORKS (INC FENCING & GARDENING,22/02/2021,88.01,IDVERDE LTD,780,PARKING SERVICES
065783101448,LANDSCAPE WORKS (INC FENCING & GARDENING,22/02/2021,6.6,IDVERDE LTD,780,PARKING SERVICES
065783101448,LANDSCAPE WORKS (INC FENCING & GARDENING,22/02/2021,91.2,IDVERDE LTD,780,PARKING SERVICES
065783101448,LANDSCAPE WORKS (INC FENCING & GARDENING,22/02/2021,9.7,IDVERDE LTD,780,STREET SCENE & FLEET
065783101448,LANDSCAPE WORKS (INC FENCING & GARDENING,22/02/2021,5.49,IDVERDE LTD,780,HOUSING
065783101448,LANDSCAPE WORKS (INC FENCING & GARDENING,22/02/2021,89.99,IDVERDE LTD,780,HOUSING
065783101448,GRASS CUTTING -EXTERNAL,22/02/2021,5.49,IDVERDE LTD,780,PROPERTY & FACILITIES
065783101448,LANDSCAPE WORKS (INC FENCING & GARDENING,22/02/2021,6.32,IDVERDE LTD,780,PROPERTY & FACILITIES
065783101448,LANDSCAPE WORKS (INC FENCING & GARDENING,22/02/2021,25.73,IDVERDE LTD,780,HOUSING
065783101448,LANDSCAPE WORKS (INC FENCING & GARDENING,22/02/2021,128.1,IDVERDE LTD,780,PROPERTY & FACILITIES
065783101448,LANDSCAPE WORKS (INC FENCING & GARDENING,22/02/2021,7.24,IDVERDE LTD,780,PROPERTY & FACILITIES
065783101448,LANDSCAPE WORKS (INC FENCING & GARDENING,22/02/2021,19.26,IDVERDE LTD,780,PROPERTY & FACILITIES
065783101448,CORE GROUNDS MAINT CONTRACT,22/02/2021,13345.93,IDVERDE LTD,780,LEISURE & CULTURE
065783101448,LANDSCAPE WORKS (INC FENCING & GARDENING,22/02/2021,131,IDVERDE LTD,780,LEISURE & CULTURE
065783101448,S106  EXPENDITURE,22/02/2021,286.85,IDVERDE LTD,780,LEISURE & CULTURE
065783101448,S106  EXPENDITURE,22/02/2021,10.04,IDVERDE LTD,780,LEISURE & CULTURE
065783101448,S106  EXPENDITURE,22/02/2021,108.6,IDVERDE LTD,780,LEISURE & CULTURE
065783101448,S106  EXPENDITURE,22/02/2021,6.21,IDVERDE LTD,780,LEISURE & CULTURE
065783101448,S106  EXPENDITURE,22/02/2021,14.5,IDVERDE LTD,780,LEISURE & CULTURE
065783101448,S106  EXPENDITURE,22/02/2021,69.56,IDVERDE LTD,780,LEISURE & CULTURE
065783101448,S106  EXPENDITURE,22/02/2021,25.24,IDVERDE LTD,780,LEISURE & CULTURE
065784102274,PAYMENTS MADE FOR SERVICES,22/02/2021,7272.49,MEDISORT LTD,8099,WASTE & RECYLING
065786102274,PAYMENTS MADE FOR SERVICES,22/02/2021,6691.06,MEDISORT LTD,8099,WASTE & RECYLING
065790101725,AGENCY STAFF,22/02/2021,2772,SELLICK PARTNERSHIP LTD,7361,LEGAL & DEMOCRATIC
065806101448,LANDSCAPE WORKS (INC FENCING & GARDENING,22/02/2021,75.53,IDVERDE LTD,780,PROPERTY & FACILITIES
065806101448,LANDSCAPE WORKS (INC FENCING & GARDENING,22/02/2021,15.98,IDVERDE LTD,780,PROPERTY & FACILITIES
065806101448,LANDSCAPE WORKS (INC FENCING & GARDENING,22/02/2021,23.38,IDVERDE LTD,780,LEISURE & CULTURE
065806101448,LANDSCAPE WORKS (INC FENCING & GARDENING,22/02/2021,28.27,IDVERDE LTD,780,PARKING SERVICES
065806101448,LANDSCAPE WORKS (INC FENCING & GARDENING,22/02/2021,55.94,IDVERDE LTD,780,PARKING SERVICES
065806101448,LANDSCAPE WORKS (INC FENCING & GARDENING,22/02/2021,43.91,IDVERDE LTD,780,PARKING SERVICES
065806101448,LANDSCAPE WORKS (INC FENCING & GARDENING,22/02/2021,8.77,IDVERDE LTD,780,PARKING SERVICES
065806101448,LANDSCAPE WORKS (INC FENCING & GARDENING,22/02/2021,2.16,IDVERDE LTD,780,PARKING SERVICES
065806101448,LANDSCAPE WORKS (INC FENCING & GARDENING,22/02/2021,3.3,IDVERDE LTD,780,PARKING SERVICES
065806101448,LANDSCAPE WORKS (INC FENCING & GARDENING,22/02/2021,7.68,IDVERDE LTD,780,PARKING SERVICES
065806101448,LANDSCAPE WORKS (INC FENCING & GARDENING,22/02/2021,42.36,IDVERDE LTD,780,PARKING SERVICES
065806101448,LANDSCAPE WORKS (INC FENCING & GARDENING,22/02/2021,14.28,IDVERDE LTD,780,PARKING SERVICES
065806101448,LANDSCAPE WORKS (INC FENCING & GARDENING,22/02/2021,35.64,IDVERDE LTD,780,PARKING SERVICES
065806101448,LANDSCAPE WORKS (INC FENCING & GARDENING,22/02/2021,10.98,IDVERDE LTD,780,PARKING SERVICES
065806101448,LANDSCAPE WORKS (INC FENCING & GARDENING,22/02/2021,27.44,IDVERDE LTD,780,PARKING SERVICES
065806101448,LANDSCAPE WORKS (INC FENCING & GARDENING,22/02/2021,7.68,IDVERDE LTD,780,PARKING SERVICES
065806101448,LANDSCAPE WORKS (INC FENCING & GARDENING,22/02/2021,240.39,IDVERDE LTD,780,PARKING SERVICES
065806101448,LANDSCAPE WORKS (INC FENCING & GARDENING,22/02/2021,2.2,IDVERDE LTD,780,PARKING SERVICES
065806101448,LANDSCAPE WORKS (INC FENCING & GARDENING,22/02/2021,8.19,IDVERDE LTD,780,PARKING SERVICES
065806101448,LANDSCAPE WORKS (INC FENCING & GARDENING,22/02/2021,88.02,IDVERDE LTD,780,PARKING SERVICES
065806101448,LANDSCAPE WORKS (INC FENCING & GARDENING,22/02/2021,6.59,IDVERDE LTD,780,PARKING SERVICES
065806101448,LANDSCAPE WORKS (INC FENCING & GARDENING,22/02/2021,91.21,IDVERDE LTD,780,PARKING SERVICES
065806101448,LANDSCAPE WORKS (INC FENCING & GARDENING,22/02/2021,9.7,IDVERDE LTD,780,STREET SCENE & FLEET
065806101448,LANDSCAPE WORKS (INC FENCING & GARDENING,22/02/2021,5.48,IDVERDE LTD,780,HOUSING
065806101448,LANDSCAPE WORKS (INC FENCING & GARDENING,22/02/2021,90,IDVERDE LTD,780,HOUSING
065806101448,GRASS CUTTING -EXTERNAL,22/02/2021,5.49,IDVERDE LTD,780,PROPERTY & FACILITIES
065806101448,LANDSCAPE WORKS (INC FENCING & GARDENING,22/02/2021,6.32,IDVERDE LTD,780,PROPERTY & FACILITIES
065806101448,LANDSCAPE WORKS (INC FENCING & GARDENING,22/02/2021,25.73,IDVERDE LTD,780,HOUSING
065806101448,LANDSCAPE WORKS (INC FENCING & GARDENING,22/02/2021,128.1,IDVERDE LTD,780,PROPERTY & FACILITIES
065806101448,LANDSCAPE WORKS (INC FENCING & GARDENING,22/02/2021,7.24,IDVERDE LTD,780,PROPERTY & FACILITIES
065806101448,LANDSCAPE WORKS (INC FENCING & GARDENING,22/02/2021,19.26,IDVERDE LTD,780,PROPERTY & FACILITIES
065806101448,CORE GROUNDS MAINT CONTRACT,22/02/2021,13345.9,IDVERDE LTD,780,LEISURE & CULTURE
065806101448,LANDSCAPE WORKS (INC FENCING & GARDENING,22/02/2021,131.02,IDVERDE LTD,780,LEISURE & CULTURE
065806101448,S106  EXPENDITURE,22/02/2021,286.84,IDVERDE LTD,780,LEISURE & CULTURE
065806101448,S106  EXPENDITURE,22/02/2021,10.04,IDVERDE LTD,780,LEISURE & CULTURE
065806101448,S106  EXPENDITURE,22/02/2021,108.61,IDVERDE LTD,780,LEISURE & CULTURE
065806101448,S106  EXPENDITURE,22/02/2021,6.19,IDVERDE LTD,780,LEISURE & CULTURE
065806101448,S106  EXPENDITURE,22/02/2021,14.51,IDVERDE LTD,780,LEISURE & CULTURE
065806101448,S106  EXPENDITURE,22/02/2021,69.55,IDVERDE LTD,780,LEISURE & CULTURE
065806101448,S106  EXPENDITURE,22/02/2021,25.26,IDVERDE LTD,780,LEISURE & CULTURE
065821100122,BURIAL EXPENSES,22/02/2021,1329,FREEMAN BROTHERS,7261,ENVIRONMENTAL SERVICES/LICENSING
065824100638,TEC REGISTRATION & WARRANT FEES,22/02/2021,6000,TRAFFIC ENFORCEMENT CENTRE,4789,PARKING SERVICES
065827101080,EQUIPMENT & TOOLS-PURCHASE,22/02/2021,1729.7,IMPERIAL POLYTHENE PRODUCTS LTD,5085,STREET SCENE & FLEET
065846101725,AGENCY STAFF,22/02/2021,858,SELLICK PARTNERSHIP LTD,7361,LEGAL & DEMOCRATIC
065856101230,AGENCY STAFF,22/02/2021,1800,M W VEHICLE ENGINEERS LTD,5013,STREET SCENE & FLEET
065859104127,BOARD & LODGING CHARGES,22/02/2021,840,Bernice Gandolfi,1520,HOUSING
065875100917,BOARD & LODGING CHARGES,22/02/2021,1306.76,WIMBLEHURST HOTEL,7011,HOUSING
065875100917,BOARD & LODGING CHARGES,22/02/2021,686.01,WIMBLEHURST HOTEL,7011,HOUSING
065914100041,ELECTRICITY,22/02/2021,120.2,KENT COUNTY COUNCIL (KCS),4900,PROPERTY & FACILITIES
065914100041,ELECTRICITY,22/02/2021,13.13,KENT COUNTY COUNCIL (KCS),4900,ECONOMIC DEVELOPMENT
065914100041,ELECTRICITY,22/02/2021,6.97,KENT COUNTY COUNCIL (KCS),4900,ECONOMIC DEVELOPMENT
065914100041,ELECTRICITY,22/02/2021,8.2,KENT COUNTY COUNCIL (KCS),4900,ECONOMIC DEVELOPMENT
065914100041,ELECTRICITY,22/02/2021,28.31,KENT COUNTY COUNCIL (KCS),4900,ECONOMIC DEVELOPMENT
065914100041,ELECTRICITY,22/02/2021,233.42,KENT COUNTY COUNCIL (KCS),4900,PROPERTY & FACILITIES
065914100041,GAS,22/02/2021,38.96,KENT COUNTY COUNCIL (KCS),4900,LEISURE & CULTURE
065914100041,GAS,22/02/2021,369.92,KENT COUNTY COUNCIL (KCS),4900,PROPERTY & FACILITIES
065914100041,GAS,22/02/2021,97.4,KENT COUNTY COUNCIL (KCS),4900,PROPERTY & FACILITIES
065914100041,GAS,22/02/2021,399.33,KENT COUNTY COUNCIL (KCS),4900,PROPERTY & FACILITIES
065914100041,GAS,22/02/2021,68.37,KENT COUNTY COUNCIL (KCS),4900,PROPERTY & FACILITIES
065914100041,ELECTRICITY,22/02/2021,584.31,KENT COUNTY COUNCIL (KCS),4900,LEISURE & CULTURE
065914100041,ELECTRICITY,22/02/2021,49.66,KENT COUNTY COUNCIL (KCS),4900,LEISURE & CULTURE
065914100041,ELECTRICITY,22/02/2021,248.32,KENT COUNTY COUNCIL (KCS),4900,PROPERTY & FACILITIES
065914100041,ELECTRICITY,22/02/2021,265.85,KENT COUNTY COUNCIL (KCS),4900,PROPERTY & FACILITIES
065914100041,ELECTRICITY,22/02/2021,613.5,KENT COUNTY COUNCIL (KCS),4900,PROPERTY & FACILITIES
065914100041,ELECTRICITY,22/02/2021,14.61,KENT COUNTY COUNCIL (KCS),4900,SPATIAL PLANNING
065914100041,ELECTRICITY,22/02/2021,146.07,KENT COUNTY COUNCIL (KCS),4900,LEISURE & CULTURE
065914100041,ELECTRICITY,22/02/2021,49.66,KENT COUNTY COUNCIL (KCS),4900,PROPERTY & FACILITIES
065914100041,ELECTRICITY,22/02/2021,671.93,KENT COUNTY COUNCIL (KCS),4900,PROPERTY & FACILITIES
065914100041,ELECTRICITY,22/02/2021,277.54,KENT COUNTY COUNCIL (KCS),4900,PROPERTY & FACILITIES
065914100041,ELECTRICITY,22/02/2021,2568.48,KENT COUNTY COUNCIL (KCS),4900,LEISURE & CULTURE
065914100041,ELECTRICITY,22/02/2021,173.42,KENT COUNTY COUNCIL (KCS),4900,PROPERTY & FACILITIES
065914100041,ELECTRICITY,22/02/2021,1111.2,KENT COUNTY COUNCIL (KCS),4900,PARKING SERVICES
065914100041,ELECTRICITY,22/02/2021,24.46,KENT COUNTY COUNCIL (KCS),4900,PARKING SERVICES
065914100041,ELECTRICITY,22/02/2021,464.74,KENT COUNTY COUNCIL (KCS),4900,PARKING SERVICES
065914100041,ELECTRICITY,22/02/2021,2479.06,KENT COUNTY COUNCIL (KCS),4900,STREET SCENE & FLEET
065914100041,GAS,22/02/2021,2517.77,KENT COUNTY COUNCIL (KCS),4900,LEISURE & CULTURE
065914100041,ELECTRICITY,22/02/2021,2287.27,KENT COUNTY COUNCIL (KCS),4900,LEISURE & CULTURE
065914100041,ELECTRICITY,22/02/2021,12.43,KENT COUNTY COUNCIL (KCS),4900,ECONOMIC DEVELOPMENT
065914100041,ELECTRICITY,22/02/2021,310.8,KENT COUNTY COUNCIL (KCS),4900,PROPERTY & FACILITIES
065914100041,ELECTRICITY,22/02/2021,65.51,KENT COUNTY COUNCIL (KCS),4900,PROPERTY & FACILITIES
065914100041,ELECTRICITY,22/02/2021,64.31,KENT COUNTY COUNCIL (KCS),4900,PROPERTY & FACILITIES
065914100041,ELECTRICITY,22/02/2021,25.1,KENT COUNTY COUNCIL (KCS),4900,ECONOMIC DEVELOPMENT
065914100041,ELECTRICITY,22/02/2021,279.63,KENT COUNTY COUNCIL (KCS),4900,PROPERTY & FACILITIES
065914100041,ELECTRICITY,22/02/2021,75.99,KENT COUNTY COUNCIL (KCS),4900,PROPERTY & FACILITIES
065914100041,ELECTRICITY,22/02/2021,2616.99,KENT COUNTY COUNCIL (KCS),4900,PARKING SERVICES
065914100041,ELECTRICITY,22/02/2021,2.53,KENT COUNTY COUNCIL (KCS),4900,PROPERTY & FACILITIES
065914100041,ELECTRICITY,22/02/2021,268.49,KENT COUNTY COUNCIL (KCS),4900,PROPERTY & FACILITIES
065914100041,ELECTRICITY,22/02/2021,638.29,KENT COUNTY COUNCIL (KCS),4900,PROPERTY & FACILITIES
065914100041,ELECTRICITY,22/02/2021,24.82,KENT COUNTY COUNCIL (KCS),4900,PROPERTY & FACILITIES
065914100041,ELECTRICITY,22/02/2021,171.22,KENT COUNTY COUNCIL (KCS),4900,PROPERTY & FACILITIES
065914100041,ELECTRICITY,22/02/2021,987.83,KENT COUNTY COUNCIL (KCS),4900,PROPERTY & FACILITIES
065914100041,ELECTRICITY,22/02/2021,59.15,KENT COUNTY COUNCIL (KCS),4900,PROPERTY & FACILITIES
065914100041,ELECTRICITY,22/02/2021,16.07,KENT COUNTY COUNCIL (KCS),4900,PROPERTY & FACILITIES
065914100041,ELECTRICITY,22/02/2021,553.57,KENT COUNTY COUNCIL (KCS),4900,PARKING SERVICES
065914100041,ELECTRICITY,22/02/2021,0.54,KENT COUNTY COUNCIL (KCS),4900,PROPERTY & FACILITIES
065914100041,ELECTRICITY,22/02/2021,56.79,KENT COUNTY COUNCIL (KCS),4900,PROPERTY & FACILITIES
065914100041,ELECTRICITY,22/02/2021,135.02,KENT COUNTY COUNCIL (KCS),4900,PROPERTY & FACILITIES
065914100041,ELECTRICITY,22/02/2021,5.25,KENT COUNTY COUNCIL (KCS),4900,PROPERTY & FACILITIES
065914100041,ELECTRICITY,22/02/2021,36.22,KENT COUNTY COUNCIL (KCS),4900,PROPERTY & FACILITIES
065914100041,ELECTRICITY,22/02/2021,208.96,KENT COUNTY COUNCIL (KCS),4900,PROPERTY & FACILITIES
065914100041,GAS,22/02/2021,274.94,KENT COUNTY COUNCIL (KCS),4900,HOUSING
065914100041,GAS,22/02/2021,45.47,KENT COUNTY COUNCIL (KCS),4900,HOUSING
065914100041,GAS,22/02/2021,11.72,KENT COUNTY COUNCIL (KCS),4900,HOUSING
065914100041,GAS,22/02/2021,81.56,KENT COUNTY COUNCIL (KCS),4900,HOUSING
065914100041,GAS,22/02/2021,32.42,KENT COUNTY COUNCIL (KCS),4900,HOUSING
065914100041,GAS,22/02/2021,263.69,KENT COUNTY COUNCIL (KCS),4900,HOUSING
065914100041,ELECTRICITY,22/02/2021,439.49,KENT COUNTY COUNCIL (KCS),4900,HOUSING
065914100041,GAS,22/02/2021,-7.85,KENT COUNTY COUNCIL (KCS),4900,HOUSING
065914100041,GAS,22/02/2021,29.93,KENT COUNTY COUNCIL (KCS),4900,HOUSING
065914100041,GAS,22/02/2021,32.18,KENT COUNTY COUNCIL (KCS),4900,HOUSING
065914100041,GAS,22/02/2021,22.58,KENT COUNTY COUNCIL (KCS),4900,HOUSING
065914100041,GAS,22/02/2021,-11.13,KENT COUNTY COUNCIL (KCS),4900,HOUSING
065914100041,GAS,22/02/2021,-18.07,KENT COUNTY COUNCIL (KCS),4900,HOUSING
065914100041,GAS,22/02/2021,-11.91,KENT COUNTY COUNCIL (KCS),4900,HOUSING
065914100041,GAS,22/02/2021,-20.5,KENT COUNTY COUNCIL (KCS),4900,HOUSING
065914100041,GAS,22/02/2021,-22.42,KENT COUNTY COUNCIL (KCS),4900,HOUSING
065914100041,GAS,22/02/2021,-15.23,KENT COUNTY COUNCIL (KCS),4900,HOUSING
065914100041,GAS,22/02/2021,60.09,KENT COUNTY COUNCIL (KCS),4900,HOUSING
065914100041,GAS,22/02/2021,-7.59,KENT COUNTY COUNCIL (KCS),4900,HOUSING
065914100041,GAS,22/02/2021,-8.63,KENT COUNTY COUNCIL (KCS),4900,HOUSING
065914100041,GAS,22/02/2021,29.86,KENT COUNTY COUNCIL (KCS),4900,HOUSING
065914100041,GAS,22/02/2021,279.81,KENT COUNTY COUNCIL (KCS),4900,HOUSING
065914100041,GAS,22/02/2021,10.99,KENT COUNTY COUNCIL (KCS),4900,LEISURE & CULTURE
065914100041,GAS,22/02/2021,23.35,KENT COUNTY COUNCIL (KCS),4900,LEISURE & CULTURE
065914100041,GAS,22/02/2021,335.42,KENT COUNTY COUNCIL (KCS),4900,HOUSING
065914100041,GAS,22/02/2021,176.76,KENT COUNTY COUNCIL (KCS),4900,HOUSING
065914100041,ELECTRICITY,22/02/2021,137.7,KENT COUNTY COUNCIL (KCS),4900,PARKING SERVICES
065914100041,ELECTRICITY,22/02/2021,2616.29,KENT COUNTY COUNCIL (KCS),4900,PARKING SERVICES
065914100041,GAS,22/02/2021,613.25,KENT COUNTY COUNCIL (KCS),4900,LEISURE & CULTURE
065914100041,GAS,22/02/2021,44.97,KENT COUNTY COUNCIL (KCS),4900,LEISURE & CULTURE
065914100041,GAS,22/02/2021,41.04,KENT COUNTY COUNCIL (KCS),4900,LEISURE & CULTURE
065914100041,ELECTRICITY,22/02/2021,38.77,KENT COUNTY COUNCIL (KCS),4900,HOUSING
065914100041,ELECTRICITY,22/02/2021,41.77,KENT COUNTY COUNCIL (KCS),4900,PROPERTY & FACILITIES
065914100041,ELECTRICITY,22/02/2021,1.6,KENT COUNTY COUNCIL (KCS),4900,PARKING SERVICES
065914100041,ELECTRICITY,22/02/2021,33.74,KENT COUNTY COUNCIL (KCS),4900,PARKING SERVICES
065914100041,ELECTRICITY,22/02/2021,3.32,KENT COUNTY COUNCIL (KCS),4900,PROPERTY & FACILITIES
065914100041,ELECTRICITY,22/02/2021,13.13,KENT COUNTY COUNCIL (KCS),4900,PARKING SERVICES
065914100041,ELECTRICITY,22/02/2021,20.78,KENT COUNTY COUNCIL (KCS),4900,PARKING SERVICES
065914100041,ELECTRICITY,22/02/2021,1.6,KENT COUNTY COUNCIL (KCS),4900,PROPERTY & FACILITIES
065914100041,ELECTRICITY,22/02/2021,80.91,KENT COUNTY COUNCIL (KCS),4900,PARKING SERVICES
065914100041,ELECTRICITY,22/02/2021,35.64,KENT COUNTY COUNCIL (KCS),4900,PARKING SERVICES
065914100041,ELECTRICITY,22/02/2021,11.36,KENT COUNTY COUNCIL (KCS),4900,PROPERTY & FACILITIES
065914100041,ELECTRICITY,22/02/2021,2.88,KENT COUNTY COUNCIL (KCS),4900,PROPERTY & FACILITIES
065914100041,ELECTRICITY,22/02/2021,6.82,KENT COUNTY COUNCIL (KCS),4900,PROPERTY & FACILITIES
065914100041,ELECTRICITY,22/02/2021,6.49,KENT COUNTY COUNCIL (KCS),4900,PARKING SERVICES
065914100041,ELECTRICITY,22/02/2021,3.82,KENT COUNTY COUNCIL (KCS),4900,PROPERTY & FACILITIES
065914100041,ELECTRICITY,22/02/2021,4.86,KENT COUNTY COUNCIL (KCS),4900,PARKING SERVICES
065914100041,ELECTRICITY,22/02/2021,5.75,KENT COUNTY COUNCIL (KCS),4900,PARKING SERVICES
065914100041,ELECTRICITY,22/02/2021,12.96,KENT COUNTY COUNCIL (KCS),4900,PARKING SERVICES
065914100041,ELECTRICITY,22/02/2021,4.86,KENT COUNTY COUNCIL (KCS),4900,PROPERTY & FACILITIES
065914100041,ELECTRICITY,22/02/2021,4.21,KENT COUNTY COUNCIL (KCS),4900,PARKING SERVICES
065914100041,ELECTRICITY,22/02/2021,85.54,KENT COUNTY COUNCIL (KCS),4900,PROPERTY & FACILITIES
065914100041,ELECTRICITY,22/02/2021,3.28,KENT COUNTY COUNCIL (KCS),4900,PARKING SERVICES
065914100041,ELECTRICITY,22/02/2021,69.13,KENT COUNTY COUNCIL (KCS),4900,PARKING SERVICES
065914100041,ELECTRICITY,22/02/2021,6.8,KENT COUNTY COUNCIL (KCS),4900,PROPERTY & FACILITIES
065914100041,ELECTRICITY,22/02/2021,26.91,KENT COUNTY COUNCIL (KCS),4900,PARKING SERVICES
065914100041,ELECTRICITY,22/02/2021,42.58,KENT COUNTY COUNCIL (KCS),4900,PARKING SERVICES
065914100041,ELECTRICITY,22/02/2021,3.28,KENT COUNTY COUNCIL (KCS),4900,PROPERTY & FACILITIES
065914100041,ELECTRICITY,22/02/2021,165.78,KENT COUNTY COUNCIL (KCS),4900,PARKING SERVICES
065914100041,ELECTRICITY,22/02/2021,73.02,KENT COUNTY COUNCIL (KCS),4900,PARKING SERVICES
065914100041,ELECTRICITY,22/02/2021,23.27,KENT COUNTY COUNCIL (KCS),4900,PROPERTY & FACILITIES
065914100041,ELECTRICITY,22/02/2021,5.89,KENT COUNTY COUNCIL (KCS),4900,PROPERTY & FACILITIES
065914100041,ELECTRICITY,22/02/2021,13.97,KENT COUNTY COUNCIL (KCS),4900,PROPERTY & FACILITIES
065914100041,ELECTRICITY,22/02/2021,13.3,KENT COUNTY COUNCIL (KCS),4900,PARKING SERVICES
065914100041,ELECTRICITY,22/02/2021,7.84,KENT COUNTY COUNCIL (KCS),4900,PROPERTY & FACILITIES
065914100041,ELECTRICITY,22/02/2021,9.96,KENT COUNTY COUNCIL (KCS),4900,PARKING SERVICES
065914100041,ELECTRICITY,22/02/2021,11.79,KENT COUNTY COUNCIL (KCS),4900,PARKING SERVICES
065914100041,ELECTRICITY,22/02/2021,26.55,KENT COUNTY COUNCIL (KCS),4900,PARKING SERVICES
065914100041,ELECTRICITY,22/02/2021,9.96,KENT COUNTY COUNCIL (KCS),4900,PROPERTY & FACILITIES
065914100041,ELECTRICITY,22/02/2021,8.63,KENT COUNTY COUNCIL (KCS),4900,PARKING SERVICES
065914100041,ELECTRICITY,22/02/2021,6.78,KENT COUNTY COUNCIL (KCS),4900,PROPERTY & FACILITIES
065914100041,ELECTRICITY,22/02/2021,0.26,KENT COUNTY COUNCIL (KCS),4900,PARKING SERVICES
065914100041,ELECTRICITY,22/02/2021,5.49,KENT COUNTY COUNCIL (KCS),4900,PARKING SERVICES
065914100041,ELECTRICITY,22/02/2021,0.54,KENT COUNTY COUNCIL (KCS),4900,PROPERTY & FACILITIES
065914100041,ELECTRICITY,22/02/2021,2.14,KENT COUNTY COUNCIL (KCS),4900,PARKING SERVICES
065914100041,ELECTRICITY,22/02/2021,3.38,KENT COUNTY COUNCIL (KCS),4900,PARKING SERVICES
065914100041,ELECTRICITY,22/02/2021,0.26,KENT COUNTY COUNCIL (KCS),4900,PROPERTY & FACILITIES
065914100041,ELECTRICITY,22/02/2021,13.17,KENT COUNTY COUNCIL (KCS),4900,PARKING SERVICES
065914100041,ELECTRICITY,22/02/2021,5.8,KENT COUNTY COUNCIL (KCS),4900,PARKING SERVICES
065914100041,ELECTRICITY,22/02/2021,1.85,KENT COUNTY COUNCIL (KCS),4900,PROPERTY & FACILITIES
065914100041,ELECTRICITY,22/02/2021,0.47,KENT COUNTY COUNCIL (KCS),4900,PROPERTY & FACILITIES
065914100041,ELECTRICITY,22/02/2021,1.11,KENT COUNTY COUNCIL (KCS),4900,PROPERTY & FACILITIES
065914100041,ELECTRICITY,22/02/2021,1.06,KENT COUNTY COUNCIL (KCS),4900,PARKING SERVICES
065914100041,ELECTRICITY,22/02/2021,0.62,KENT COUNTY COUNCIL (KCS),4900,PROPERTY & FACILITIES
065914100041,ELECTRICITY,22/02/2021,0.79,KENT COUNTY COUNCIL (KCS),4900,PARKING SERVICES
065914100041,ELECTRICITY,22/02/2021,0.94,KENT COUNTY COUNCIL (KCS),4900,PARKING SERVICES
065914100041,ELECTRICITY,22/02/2021,2.11,KENT COUNTY COUNCIL (KCS),4900,PARKING SERVICES
065914100041,ELECTRICITY,22/02/2021,0.79,KENT COUNTY COUNCIL (KCS),4900,PROPERTY & FACILITIES
065914100041,ELECTRICITY,22/02/2021,0.69,KENT COUNTY COUNCIL (KCS),4900,PARKING SERVICES
065914100041,GAS,22/02/2021,197.44,KENT COUNTY COUNCIL (KCS),4900,PROPERTY & FACILITIES
065914100041,GAS,22/02/2021,43.62,KENT COUNTY COUNCIL (KCS),4900,HOUSING
065914100041,GAS,22/02/2021,54.74,KENT COUNTY COUNCIL (KCS),4900,HOUSING
065914100041,GAS,22/02/2021,34.2,KENT COUNTY COUNCIL (KCS),4900,HOUSING
065914100041,GAS,22/02/2021,54.13,KENT COUNTY COUNCIL (KCS),4900,HOUSING
065914100041,GAS,22/02/2021,46.81,KENT COUNTY COUNCIL (KCS),4900,HOUSING
065914100041,GAS,22/02/2021,38.45,KENT COUNTY COUNCIL (KCS),4900,HOUSING
065914100041,GAS,22/02/2021,37.84,KENT COUNTY COUNCIL (KCS),4900,HOUSING
065914100041,GAS,22/02/2021,54.88,KENT COUNTY COUNCIL (KCS),4900,HOUSING
065914100041,GAS,22/02/2021,30.92,KENT COUNTY COUNCIL (KCS),4900,HOUSING
065914100041,GAS,22/02/2021,18.17,KENT COUNTY COUNCIL (KCS),4900,HOUSING
065914100041,GAS,22/02/2021,27.36,KENT COUNTY COUNCIL (KCS),4900,HOUSING
065914100041,GAS,22/02/2021,27.09,KENT COUNTY COUNCIL (KCS),4900,HOUSING
065914100041,GAS,22/02/2021,24.9,KENT COUNTY COUNCIL (KCS),4900,HOUSING
065914100041,GAS,22/02/2021,24.74,KENT COUNTY COUNCIL (KCS),4900,HOUSING
065914100041,GAS,22/02/2021,24.41,KENT COUNTY COUNCIL (KCS),4900,HOUSING
065914100041,GAS,22/02/2021,21.81,KENT COUNTY COUNCIL (KCS),4900,HOUSING
065914100041,GAS,22/02/2021,22.85,KENT COUNTY COUNCIL (KCS),4900,HOUSING
065914100041,GAS,22/02/2021,25.15,KENT COUNTY COUNCIL (KCS),4900,HOUSING
065914100041,GAS,22/02/2021,24.57,KENT COUNTY COUNCIL (KCS),4900,HOUSING
065914100041,GAS,22/02/2021,47.11,KENT COUNTY COUNCIL (KCS),4900,HOUSING
065914100041,GAS,22/02/2021,38.81,KENT COUNTY COUNCIL (KCS),4900,HOUSING
065914100041,GAS,22/02/2021,29.25,KENT COUNTY COUNCIL (KCS),4900,HOUSING
065914100041,GAS,22/02/2021,36,KENT COUNTY COUNCIL (KCS),4900,HOUSING
065914100041,GAS,22/02/2021,36.78,KENT COUNTY COUNCIL (KCS),4900,HOUSING
065914100041,GAS,22/02/2021,54.19,KENT COUNTY COUNCIL (KCS),4900,HOUSING
065914100041,GAS,22/02/2021,19.81,KENT COUNTY COUNCIL (KCS),4900,HOUSING
065914100041,GAS,22/02/2021,22.82,KENT COUNTY COUNCIL (KCS),4900,HOUSING
065914100041,GAS,22/02/2021,21.79,KENT COUNTY COUNCIL (KCS),4900,HOUSING
065914100041,GAS,22/02/2021,54.6,KENT COUNTY COUNCIL (KCS),4900,HOUSING
065914100041,GAS,22/02/2021,32.22,KENT COUNTY COUNCIL (KCS),4900,HOUSING
065914100041,GAS,22/02/2021,41.11,KENT COUNTY COUNCIL (KCS),4900,HOUSING
065914100041,GAS,22/02/2021,44.38,KENT COUNTY COUNCIL (KCS),4900,HOUSING
065914100041,GAS,22/02/2021,25.15,KENT COUNTY COUNCIL (KCS),4900,HOUSING
065914100041,GAS,22/02/2021,22.72,KENT COUNTY COUNCIL (KCS),4900,HOUSING
065914102565,WATER,22/02/2021,477.76,SCOTTISH WATER BUSINESS STREAM LTD,4900,LEISURE & CULTURE
065914102565,WATER,22/02/2021,283.24,SCOTTISH WATER BUSINESS STREAM LTD,4900,PROPERTY & FACILITIES
065914104009,WATER,22/02/2021,40.05,Advanced Demand Side Management Ltd,4900,PROPERTY & FACILITIES
065914104009,WATER,22/02/2021,5.4,Advanced Demand Side Management Ltd,4900,PROPERTY & FACILITIES
065914104009,WATER,22/02/2021,7.67,Advanced Demand Side Management Ltd,4900,PROPERTY & FACILITIES
065914104009,WATER,22/02/2021,1.83,Advanced Demand Side Management Ltd,4900,STREET SCENE & FLEET
065914104009,WATER,22/02/2021,16.08,Advanced Demand Side Management Ltd,4900,PROPERTY & FACILITIES
065914104009,WATER,22/02/2021,2.52,Advanced Demand Side Management Ltd,4900,PARKING SERVICES
065914104009,WATER,22/02/2021,2.52,Advanced Demand Side Management Ltd,4900,PARKING SERVICES
065914104009,WATER,22/02/2021,1.83,Advanced Demand Side Management Ltd,4900,HOUSING
065914104009,ELECTRICITY,22/02/2021,2.52,Advanced Demand Side Management Ltd,4900,PARKING SERVICES
065914104009,WATER,22/02/2021,9.38,Advanced Demand Side Management Ltd,4900,ECONOMIC DEVELOPMENT
065914104009,WATER,22/02/2021,5.89,Advanced Demand Side Management Ltd,4900,ECONOMIC DEVELOPMENT
065914104009,WATER,22/02/2021,4.54,Advanced Demand Side Management Ltd,4900,ECONOMIC DEVELOPMENT
065914104009,WATER,22/02/2021,30.92,Advanced Demand Side Management Ltd,4900,PARKING SERVICES
065914104009,WATER,22/02/2021,301.99,Advanced Demand Side Management Ltd,4900,LEISURE & CULTURE
065914104009,WATER,22/02/2021,64.14,Advanced Demand Side Management Ltd,4900,LEISURE & CULTURE
065914104009,WATER - UNMETERED,22/02/2021,1.83,Advanced Demand Side Management Ltd,4900,ECONOMIC DEVELOPMENT
065914104009,WATER - UNMETERED,22/02/2021,1.83,Advanced Demand Side Management Ltd,4900,ECONOMIC DEVELOPMENT
065914104009,WATER,22/02/2021,1.83,Advanced Demand Side Management Ltd,4900,ECONOMIC DEVELOPMENT
065914104009,WATER,22/02/2021,1.83,Advanced Demand Side Management Ltd,4900,ECONOMIC DEVELOPMENT
065914104009,WATER,22/02/2021,3.18,Advanced Demand Side Management Ltd,4900,LEISURE & CULTURE
065914104009,WATER,22/02/2021,4.35,Advanced Demand Side Management Ltd,4900,PROPERTY & FACILITIES
065914104009,WATER,22/02/2021,4.35,Advanced Demand Side Management Ltd,4900,PROPERTY & FACILITIES
065914104009,WATER,22/02/2021,32.96,Advanced Demand Side Management Ltd,4900,LEISURE & CULTURE
065914104009,WATER,22/02/2021,26.38,Advanced Demand Side Management Ltd,4900,HOUSING
065914104009,ELECTRICITY,22/02/2021,2.52,Advanced Demand Side Management Ltd,4900,PARKING SERVICES
065914104009,WATER,22/02/2021,2.52,Advanced Demand Side Management Ltd,4900,PARKING SERVICES
065914104009,WATER,22/02/2021,2.52,Advanced Demand Side Management Ltd,4900,PARKING SERVICES
065914104009,WATER,22/02/2021,65.84,Advanced Demand Side Management Ltd,4900,PROPERTY & FACILITIES
065914104009,WATER,22/02/2021,73.49,Advanced Demand Side Management Ltd,4900,PROPERTY & FACILITIES
065914104009,WATER,22/02/2021,234.46,Advanced Demand Side Management Ltd,4900,PROPERTY & FACILITIES
065914104009,WATER,22/02/2021,70.17,Advanced Demand Side Management Ltd,4900,PROPERTY & FACILITIES
065914104009,WATER,22/02/2021,73.49,Advanced Demand Side Management Ltd,4900,PROPERTY & FACILITIES
065914104009,WATER,22/02/2021,66.51,Advanced Demand Side Management Ltd,4900,PROPERTY & FACILITIES
065917103658,MISCELLANEOUS INCOME FEES,22/02/2021,8000,ROGER HANNAH LTD,7392,PROPERTY & FACILITIES
065932103031,BOARD & LODGING CHARGES,22/02/2021,742,Hove Wardley Co Ltd,NA,HOUSING
